Workbook

Sheet Projectile
A1: 비스듬히 던져올린 물체의 운동
A3: 초기속도 | C3: =M3 -> 10 | M3: 10
A4: 발사각도 | C4: =M4 -> 30 | M4: 30
A5: 시간간격 | C5: =M5*0.01 -> 0.01 | M5: 1
A7: 수평방향 초기속도 | C7: =$C$3*COS($C$4*PI()/180) -> 8.660254038
A8: 수직방향 초기속도 | C8: =$C$3*SIN($C$4*PI()/180) -> 5
A10: t | B10: Sx | C10: Sy | D10: Vx | E10: Vy
A11: 0 | B11: =$C$7*A11 -> 0 | C11: =$C$8*A11-0.5*9.8*A11^2 -> 0 | D11: =$C$7 -> 8.660254038 | E11: =IF(C11>=0,$C$8-9.8*A11,0) -> 5
A12: =A11+$C$5 -> 0.01 | B12: =$C$7*A12 -> 0.08660254038 | C12: =$C$8*A12-0.5*9.8*A12^2 -> 0.04951 | D12: =$C$7 -> 8.660254038 | E12: =IF(C12>=0,$C$8-9.8*A12,0) -> 4.902
A13: =A12+$C$5 -> 0.02 | B13: 0.1732050808 | C13: 0.09804 | D13: 8.660254038 | E13: =IF(C13>=0,$C$8-9.8*A13,0) -> 4.804
A14: 0.03 | B14: 0.2598076211 | C14: 0.14559 | D14: 8.660254038 | E14: 4.706
A15: 0.04 | B15: 0.3464101615 | C15: 0.19216 | D15: 8.660254038 | E15: 4.608
A16: 0.05 | B16: 0.4330127019 | C16: 0.23775 | D16: 8.660254038 | E16: 4.51
A17: 0.06 | B17: 0.5196152423 | C17: 0.28236 | D17: 8.660254038 | E17: 4.412
A18: 0.07 | B18: 0.6062177826 | C18: 0.32599 | D18: 8.660254038 | E18: 4.314
A19: 0.08 | B19: 0.692820323 | C19: 0.36864 | D19: 8.660254038 | E19: 4.216
A20: 0.09 | B20: 0.7794228634 | C20: 0.41031 | D20: 8.660254038 | E20: 4.118
A21: 0.1 | B21: 0.8660254038 | C21: 0.451 | D21: 8.660254038 | E21: 4.02
A22: 0.11 | B22: 0.9526279442 | C22: 0.49071 | D22: 8.660254038 | E22: 3.922
A23: 0.12 | B23: 1.039230485 | C23: 0.52944 | D23: 8.660254038 | E23: 3.824
A24: 0.13 | B24: 1.125833025 | C24: 0.56719 | D24: 8.660254038 | E24: 3.726
A25: 0.14 | B25: 1.212435565 | C25: 0.60396 | D25: 8.660254038 | E25: 3.628
A26: 0.15 | B26: 1.299038106 | C26: 0.63975 | D26: 8.660254038 | E26: 3.53
A27: 0.16 | B27: 1.385640646 | C27: 0.67456 | D27: 8.660254038 | E27: 3.432
A28: 0.17 | B28: 1.472243186 | C28: 0.70839 | D28: 8.660254038 | E28: 3.334
A29: 0.18 | B29: 1.558845727 | C29: 0.74124 | D29: 8.660254038 | E29: 3.236
A30: 0.19 | B30: 1.645448267 | C30: 0.77311 | D30: 8.660254038 | E30: 3.138
A31: 0.2 | B31: 1.732050808 | C31: 0.804 | D31: 8.660254038 | E31: 3.04
A32: 0.21 | B32: 1.818653348 | C32: 0.83391 | D32: 8.660254038 | E32: 2.942
A33: 0.22 | B33: 1.905255888 | C33: 0.86284 | D33: 8.660254038 | E33: 2.844
A34: 0.23 | B34: 1.991858429 | C34: 0.89079 | D34: 8.660254038 | E34: 2.746
A35: 0.24 | B35: 2.078460969 | C35: 0.91776 | D35: 8.660254038 | E35: 2.648
A36: 0.25 | B36: 2.165063509 | C36: 0.94375 | D36: 8.660254038 | E36: 2.55
A37: 0.26 | B37: 2.25166605 | C37: 0.96876 | D37: 8.660254038 | E37: 2.452
A38: 0.27 | B38: 2.33826859 | C38: 0.99279 | D38: 8.660254038 | E38: 2.354
A39: 0.28 | B39: 2.424871131 | C39: 1.01584 | D39: 8.660254038 | E39: 2.256
A40: 0.29 | B40: 2.511473671 | C40: 1.03791 | D40: 8.660254038 | E40: 2.158
A41: 0.3 | B41: 2.598076211 | C41: 1.059 | D41: 8.660254038 | E41: 2.06
A42: 0.31 | B42: 2.684678752 | C42: 1.07911 | D42: 8.660254038 | E42: 1.962
A43: 0.32 | B43: 2.771281292 | C43: 1.09824 | D43: 8.660254038 | E43: 1.864
A44: 0.33 | B44: 2.857883832 | C44: 1.11639 | D44: 8.660254038 | E44: 1.766
A45: 0.34 | B45: 2.944486373 | C45: 1.13356 | D45: 8.660254038 | E45: 1.668
A46: 0.35 | B46: 3.031088913 | C46: 1.14975 | D46: 8.660254038 | E46: 1.57
A47: 0.36 | B47: 3.117691454 | C47: 1.16496 | D47: 8.660254038 | E47: 1.472
A48: 0.37 | B48: 3.204293994 | C48: 1.17919 | D48: 8.660254038 | E48: 1.374
A49: 0.38 | B49: 3.290896534 | C49: 1.19244 | D49: 8.660254038 | E49: 1.276
A50: 0.39 | B50: 3.377499075 | C50: 1.20471 | D50: 8.660254038 | E50: 1.178
A51: 0.4 | B51: 3.464101615 | C51: 1.216 | D51: 8.660254038 | E51: 1.08
A52: 0.41 | B52: 3.550704156 | C52: 1.22631 | D52: 8.660254038 | E52: 0.982
A53: 0.42 | B53: 3.637306696 | C53: 1.23564 | D53: 8.660254038 | E53: 0.884
A54: 0.43 | B54: 3.723909236 | C54: 1.24399 | D54: 8.660254038 | E54: 0.786
A55: 0.44 | B55: 3.810511777 | C55: 1.25136 | D55: 8.660254038 | E55: 0.688
A56: 0.45 | B56: 3.897114317 | C56: 1.25775 | D56: 8.660254038 | E56: 0.59
A57: 0.46 | B57: 3.983716857 | C57: 1.26316 | D57: 8.660254038 | E57: 0.492
A58: 0.47 | B58: 4.070319398 | C58: 1.26759 | D58: 8.660254038 | E58: 0.394
A59: 0.48 | B59: 4.156921938 | C59: 1.27104 | D59: 8.660254038 | E59: 0.296
A60: 0.49 | B60: 4.243524479 | C60: 1.27351 | D60: 8.660254038 | E60: 0.198
A61: 0.5 | B61: 4.330127019 | C61: 1.275 | D61: 8.660254038 | E61: 0.1
A62: 0.51 | B62: 4.416729559 | C62: 1.27551 | D62: 8.660254038 | E62: 0.002
A63: 0.52 | B63: 4.5033321 | C63: 1.27504 | D63: 8.660254038 | E63: -0.096
A64: 0.53 | B64: 4.58993464 | C64: 1.27359 | D64: 8.660254038 | E64: -0.194
A65: 0.54 | B65: 4.67653718 | C65: 1.27116 | D65: 8.660254038 | E65: -0.292
A66: 0.55 | B66: 4.763139721 | C66: 1.26775 | D66: 8.660254038 | E66: -0.39
A67: 0.56 | B67: 4.849742261 | C67: 1.26336 | D67: 8.660254038 | E67: -0.488
A68: 0.57 | B68: 4.936344802 | C68: 1.25799 | D68: 8.660254038 | E68: -0.586
A69: 0.58 | B69: 5.022947342 | C69: 1.25164 | D69: 8.660254038 | E69: -0.684
A70: 0.59 | B70: 5.109549882 | C70: 1.24431 | D70: 8.660254038 | E70: -0.782
A71: 0.6 | B71: 5.196152423 | C71: 1.236 | D71: 8.660254038 | E71: -0.88
A72: 0.61 | B72: 5.282754963 | C72: 1.22671 | D72: 8.660254038 | E72: -0.978
A73: 0.62 | B73: 5.369357503 | C73: 1.21644 | D73: 8.660254038 | E73: -1.076
A74: 0.63 | B74: 5.455960044 | C74: 1.20519 | D74: 8.660254038 | E74: -1.174
A75: 0.64 | B75: 5.542562584 | C75: 1.19296 | D75: 8.660254038 | E75: -1.272
A76: 0.65 | B76: =$C$7*A76 -> 5.629165125 | C76: =$C$8*A76-0.5*9.8*A76^2 -> 1.17975 | D76: =$C$7 -> 8.660254038 | E76: -1.37
A77: =A76+$C$5 -> 0.66 | B77: 5.715767665 | C77: 1.16556 | D77: 8.660254038 | E77: =IF(C77>=0,$C$8-9.8*A77,0) -> -1.468
A78: 0.67 | B78: 5.802370205 | C78: 1.15039 | D78: 8.660254038 | E78: -1.566
A79: 0.68 | B79: 5.888972746 | C79: 1.13424 | D79: 8.660254038 | E79: -1.664
A80: 0.69 | B80: 5.975575286 | C80: 1.11711 | D80: 8.660254038 | E80: -1.762
A81: 0.7 | B81: 6.062177826 | C81: 1.099 | D81: 8.660254038 | E81: -1.86
A82: 0.71 | B82: 6.148780367 | C82: 1.07991 | D82: 8.660254038 | E82: -1.958
A83: 0.72 | B83: 6.235382907 | C83: 1.05984 | D83: 8.660254038 | E83: -2.056
A84: 0.73 | B84: 6.321985448 | C84: 1.03879 | D84: 8.660254038 | E84: -2.154
A85: 0.74 | B85: 6.408587988 | C85: 1.01676 | D85: 8.660254038 | E85: -2.252
A86: 0.75 | B86: 6.495190528 | C86: 0.99375 | D86: 8.660254038 | E86: -2.35
A87: 0.76 | B87: 6.581793069 | C87: 0.96976 | D87: 8.660254038 | E87: -2.448
A88: 0.77 | B88: 6.668395609 | C88: 0.94479 | D88: 8.660254038 | E88: -2.546
A89: 0.78 | B89: 6.75499815 | C89: 0.91884 | D89: 8.660254038 | E89: -2.644
A90: 0.79 | B90: 6.84160069 | C90: 0.89191 | D90: 8.660254038 | E90: -2.742
A91: 0.8 | B91: 6.92820323 | C91: 0.864 | D91: 8.660254038 | E91: -2.84
A92: 0.81 | B92: 7.014805771 | C92: 0.83511 | D92: 8.660254038 | E92: -2.938
A93: 0.82 | B93: 7.101408311 | C93: 0.80524 | D93: 8.660254038 | E93: -3.036
A94: 0.83 | B94: 7.188010851 | C94: 0.77439 | D94: 8.660254038 | E94: -3.134
A95: 0.84 | B95: 7.274613392 | C95: 0.74256 | D95: 8.660254038 | E95: -3.232
A96: 0.85 | B96: 7.361215932 | C96: 0.70975 | D96: 8.660254038 | E96: -3.33
A97: 0.86 | B97: 7.447818473 | C97: 0.67596 | D97: 8.660254038 | E97: -3.428
A98: 0.87 | B98: 7.534421013 | C98: 0.64119 | D98: 8.660254038 | E98: -3.526
A99: 0.88 | B99: 7.621023553 | C99: 0.60544 | D99: 8.660254038 | E99: -3.624
A100: 0.89 | B100: 7.707626094 | C100: 0.56871 | D100: 8.660254038 | E100: -3.722
A101: 0.9 | B101: 7.794228634 | C101: 0.531 | D101: 8.660254038 | E101: -3.82
A102: 0.91 | B102: 7.880831174 | C102: 0.49231 | D102: 8.660254038 | E102: -3.918
A103: 0.92 | B103: 7.967433715 | C103: 0.45264 | D103: 8.660254038 | E103: -4.016
A104: 0.93 | B104: 8.054036255 | C104: 0.41199 | D104: 8.660254038 | E104: -4.114
A105: 0.94 | B105: 8.140638796 | C105: 0.37036 | D105: 8.660254038 | E105: -4.212
A106: 0.95 | B106: 8.227241336 | C106: 0.32775 | D106: 8.660254038 | E106: -4.31
A107: 0.96 | B107: 8.313843876 | C107: 0.28416 | D107: 8.660254038 | E107: -4.408
A108: 0.97 | B108: 8.400446417 | C108: 0.23959 | D108: 8.660254038 | E108: -4.506
A109: 0.98 | B109: 8.487048957 | C109: 0.19404 | D109: 8.660254038 | E109: -4.604
A110: 0.99 | B110: 8.573651497 | C110: 0.14751 | D110: 8.660254038 | E110: -4.702
A111: =A110+$C$5 -> 1 | B111: 8.660254038 | C111: =$C$8*A111-0.5*9.8*A111^2 -> 0.1 | D111: 8.660254038 | E111: -4.8
A112: 1.01 | B112: 8.746856578 | C112: 0.05151 | D112: 8.660254038 | E112: -4.898
A113: 1.02 | B113: 8.833459119 | C113: 0.00204 | D113: 8.660254038 | E113: -4.996
A114: 1.03 | B114: 8.920061659 | C114: -0.04841 | D114: 8.660254038 | E114: 0
A115: 1.04 | B115: 9.006664199 | C115: -0.09984 | D115: 8.660254038 | E115: 0
A116: 1.05 | B116: 9.09326674 | C116: -0.15225 | D116: 8.660254038 | E116: 0
A117: 1.06 | B117: 9.17986928 | C117: -0.20564 | D117: 8.660254038 | E117: 0
A118: 1.07 | B118: 9.26647182 | C118: -0.26001 | D118: 8.660254038 | E118: 0
A119: 1.08 | B119: 9.353074361 | C119: -0.31536 | D119: 8.660254038 | E119: 0
A120: 1.09 | B120: 9.439676901 | C120: -0.37169 | D120: 8.660254038 | E120: 0
A121: 1.1 | B121: 9.526279442 | C121: -0.429 | D121: 8.660254038 | E121: 0
A122: 1.11 | B122: 9.612881982 | C122: -0.48729 | D122: 8.660254038 | E122: 0
A123: 1.12 | B123: 9.699484522 | C123: -0.54656 | D123: 8.660254038 | E123: 0
A124: 1.13 | B124: 9.786087063 | C124: -0.60681 | D124: 8.660254038 | E124: 0
A125: 1.14 | B125: 9.872689603 | C125: -0.66804 | D125: 8.660254038 | E125: 0
A126: 1.15 | B126: 9.959292144 | C126: -0.73025 | D126: 8.660254038 | E126: 0
A127: 1.16 | B127: 10.04589468 | C127: -0.79344 | D127: 8.660254038 | E127: 0
A128: 1.17 | B128: 10.13249722 | C128: -0.85761 | D128: 8.660254038 | E128: 0
A129: 1.18 | B129: 10.21909976 | C129: -0.92276 | D129: 8.660254038 | E129: 0
A130: 1.19 | B130: 10.30570231 | C130: -0.98889 | D130: 8.660254038 | E130: 0
A131: 1.2 | B131: 10.39230485 | C131: -1.056 | D131: 8.660254038 | E131: 0
A132: 1.21 | B132: 10.47890739 | C132: -1.12409 | D132: 8.660254038 | E132: 0
A133: 1.22 | B133: 10.56550993 | C133: -1.19316 | D133: 8.660254038 | E133: 0
A134: 1.23 | B134: 10.65211247 | C134: -1.26321 | D134: 8.660254038 | E134: 0
A135: 1.24 | B135: 10.73871501 | C135: -1.33424 | D135: 8.660254038 | E135: 0
A136: 1.25 | B136: 10.82531755 | C136: -1.40625 | D136: 8.660254038 | E136: 0
A137: 1.26 | B137: 10.91192009 | C137: -1.47924 | D137: 8.660254038 | E137: 0
A138: 1.27 | B138: 10.99852263 | C138: -1.55321 | D138: 8.660254038 | E138: 0
A139: 1.28 | B139: 11.08512517 | C139: -1.62816 | D139: 8.660254038 | E139: 0
A140: 1.29 | B140: =$C$7*A140 -> 11.17172771 | C140: -1.70409 | D140: =$C$7 -> 8.660254038 | E140: 0
A141: 1.3 | B141: 11.25833025 | C141: -1.781 | D141: 8.660254038 | E141: =IF(C141>=0,$C$8-9.8*A141,0) -> 0
A142: 1.31 | B142: 11.34493279 | C142: -1.85889 | D142: 8.660254038 | E142: 0
A143: 1.32 | B143: 11.43153533 | C143: -1.93776 | D143: 8.660254038 | E143: 0
A144: 1.33 | B144: 11.51813787 | C144: -2.01761 | D144: 8.660254038 | E144: 0
A145: 1.34 | B145: 11.60474041 | C145: -2.09844 | D145: 8.660254038 | E145: 0
A146: 1.35 | B146: 11.69134295 | C146: -2.18025 | D146: 8.660254038 | E146: 0
A147: 1.36 | B147: 11.77794549 | C147: -2.26304 | D147: 8.660254038 | E147: 0
A148: 1.37 | B148: 11.86454803 | C148: -2.34681 | D148: 8.660254038 | E148: 0
A149: 1.38 | B149: 11.95115057 | C149: -2.43156 | D149: 8.660254038 | E149: 0
A150: 1.39 | B150: 12.03775311 | C150: -2.51729 | D150: 8.660254038 | E150: 0
A151: 1.4 | B151: 12.12435565 | C151: -2.604 | D151: 8.660254038 | E151: 0
A152: 1.41 | B152: 12.21095819 | C152: -2.69169 | D152: 8.660254038 | E152: 0
A153: 1.42 | B153: 12.29756073 | C153: -2.78036 | D153: 8.660254038 | E153: 0
A154: 1.43 | B154: 12.38416327 | C154: -2.87001 | D154: 8.660254038 | E154: 0
A155: 1.44 | B155: 12.47076581 | C155: -2.96064 | D155: 8.660254038 | E155: 0
A156: 1.45 | B156: 12.55736835 | C156: -3.05225 | D156: 8.660254038 | E156: 0
A157: 1.46 | B157: 12.6439709 | C157: -3.14484 | D157: 8.660254038 | E157: 0
A158: 1.47 | B158: 12.73057344 | C158: -3.23841 | D158: 8.660254038 | E158: 0
A159: 1.48 | B159: 12.81717598 | C159: -3.33296 | D159: 8.660254038 | E159: 0
A160: 1.49 | B160: 12.90377852 | C160: -3.42849 | D160: 8.660254038 | E160: 0
A161: 1.5 | B161: 12.99038106 | C161: -3.525 | D161: 8.660254038 | E161: 0
A162: 1.51 | B162: 13.0769836 | C162: -3.62249 | D162: 8.660254038 | E162: 0
A163: 1.52 | B163: 13.16358614 | C163: -3.72096 | D163: 8.660254038 | E163: 0
A164: 1.53 | B164: 13.25018868 | C164: -3.82041 | D164: 8.660254038 | E164: 0
A165: 1.54 | B165: 13.33679122 | C165: -3.92084 | D165: 8.660254038 | E165: 0
A166: 1.55 | B166: 13.42339376 | C166: -4.02225 | D166: 8.660254038 | E166: 0
A167: 1.56 | B167: 13.5099963 | C167: -4.12464 | D167: 8.660254038 | E167: 0
A168: 1.57 | B168: 13.59659884 | C168: -4.22801 | D168: 8.660254038 | E168: 0
A169: 1.58 | B169: 13.68320138 | C169: -4.33236 | D169: 8.660254038 | E169: 0
A170: 1.59 | B170: 13.76980392 | C170: -4.43769 | D170: 8.660254038 | E170: 0
A171: 1.6 | B171: 13.85640646 | C171: -4.544 | D171: 8.660254038 | E171: 0
A172: 1.61 | B172: 13.943009 | C172: -4.65129 | D172: 8.660254038 | E172: 0
A173: 1.62 | B173: 14.02961154 | C173: -4.75956 | D173: 8.660254038 | E173: 0
A174: 1.63 | B174: 14.11621408 | C174: -4.86881 | D174: 8.660254038 | E174: 0
A175: =A174+$C$5 -> 1.64 | B175: 14.20281662 | C175: =$C$8*A175-0.5*9.8*A175^2 -> -4.97904 | D175: 8.660254038 | E175: 0
A176: 1.65 | B176: 14.28941916 | C176: -5.09025 | D176: 8.660254038 | E176: 0
A177: 1.66 | B177: 14.3760217 | C177: -5.20244 | D177: 8.660254038 | E177: 0
A178: 1.67 | B178: 14.46262424 | C178: -5.31561 | D178: 8.660254038 | E178: 0
A179: 1.68 | B179: 14.54922678 | C179: -5.42976 | D179: 8.660254038 | E179: 0
A180: 1.69 | B180: 14.63582932 | C180: -5.54489 | D180: 8.660254038 | E180: 0
A181: 1.7 | B181: 14.72243186 | C181: -5.661 | D181: 8.660254038 | E181: 0
A182: 1.71 | B182: 14.8090344 | C182: -5.77809 | D182: 8.660254038 | E182: 0
A183: 1.72 | B183: 14.89563695 | C183: -5.89616 | D183: 8.660254038 | E183: 0
A184: 1.73 | B184: 14.98223949 | C184: -6.01521 | D184: 8.660254038 | E184: 0
A185: 1.74 | B185: 15.06884203 | C185: -6.13524 | D185: 8.660254038 | E185: 0
A186: 1.75 | B186: 15.15544457 | C186: -6.25625 | D186: 8.660254038 | E186: 0
A187: 1.76 | B187: 15.24204711 | C187: -6.37824 | D187: 8.660254038 | E187: 0
A188: 1.77 | B188: 15.32864965 | C188: -6.50121 | D188: 8.660254038 | E188: 0
A189: 1.78 | B189: 15.41525219 | C189: -6.62516 | D189: 8.660254038 | E189: 0
A190: 1.79 | B190: 15.50185473 | C190: -6.75009 | D190: 8.660254038 | E190: 0
A191: 1.8 | B191: 15.58845727 | C191: -6.876 | D191: 8.660254038 | E191: 0
A192: 1.81 | B192: 15.67505981 | C192: -7.00289 | D192: 8.660254038 | E192: 0
A193: 1.82 | B193: 15.76166235 | C193: -7.13076 | D193: 8.660254038 | E193: 0
A194: 1.83 | B194: 15.84826489 | C194: -7.25961 | D194: 8.660254038 | E194: 0
A195: 1.84 | B195: 15.93486743 | C195: -7.38944 | D195: 8.660254038 | E195: 0
A196: 1.85 | B196: 16.02146997 | C196: -7.52025 | D196: 8.660254038 | E196: 0
A197: 1.86 | B197: 16.10807251 | C197: -7.65204 | D197: 8.660254038 | E197: 0
A198: 1.87 | B198: 16.19467505 | C198: -7.78481 | D198: 8.660254038 | E198: 0
A199: 1.88 | B199: 16.28127759 | C199: -7.91856 | D199: 8.660254038 | E199: 0
A200: 1.89 | B200: 16.36788013 | C200: -8.05329 | D200: 8.660254038 | E200: 0
A201: 1.9 | B201: 16.45448267 | C201: -8.189 | D201: 8.660254038 | E201: 0
A202: 1.91 | B202: 16.54108521 | C202: -8.32569 | D202: 8.660254038 | E202: 0
A203: 1.92 | B203: 16.62768775 | C203: -8.46336 | D203: 8.660254038 | E203: 0
... 7 more rows

Sheet Sheet2
A1: 비스듬히 던져올린 물체의 운동
A3: 초기속도 | C3: =M3 -> 10 | M3: 10
A4: 발사각도 | C4: =M4 -> 45 | M4: 45
A5: 시간간격 | C5: =M5*0.01 -> 0.01 | M5: 1
A7: 수평방향 초기속도 | C7: =$C$3*COS($C$4*PI()/180) -> 7.071067812
A8: 수직방향 초기속도 | C8: =$C$3*SIN($C$4*PI()/180) -> 7.071067812
A10: t | B10: Sx | C10: Sy | D10: Vx | E10: Vy
A11: 0 | B11: =$C$7*A11 -> 0 | C11: =$C$8*A11-0.5*9.8*A11^2 -> 0 | D11: =$C$7 -> 7.071067812 | E11: =IF(C11>=0,$C$8-9.8*A11,0) -> 7.071067812
A12: =A11+$C$5 -> 0.01 | B12: =$C$7*A12 -> 0.07071067812 | C12: =$C$8*A12-0.5*9.8*A12^2 -> 0.07022067812 | D12: =$C$7 -> 7.071067812 | E12: =IF(C12>=0,$C$8-9.8*A12,0) -> 6.973067812
A13: =A12+$C$5 -> 0.02 | B13: 0.1414213562 | C13: 0.1394613562 | D13: 7.071067812 | E13: 6.875067812
A14: 0.03 | B14: 0.2121320344 | C14: 0.2077220344 | D14: 7.071067812 | E14: 6.777067812
A15: 0.04 | B15: 0.2828427125 | C15: 0.2750027125 | D15: 7.071067812 | E15: 6.679067812
A16: 0.05 | B16: 0.3535533906 | C16: 0.3413033906 | D16: 7.071067812 | E16: 6.581067812
A17: 0.06 | B17: 0.4242640687 | C17: 0.4066240687 | D17: 7.071067812 | E17: 6.483067812
A18: 0.07 | B18: 0.4949747468 | C18: 0.4709647468 | D18: 7.071067812 | E18: 6.385067812
A19: 0.08 | B19: 0.5656854249 | C19: 0.5343254249 | D19: 7.071067812 | E19: 6.287067812
A20: 0.09 | B20: 0.6363961031 | C20: 0.5967061031 | D20: 7.071067812 | E20: 6.189067812
A21: 0.1 | B21: 0.7071067812 | C21: 0.6581067812 | D21: 7.071067812 | E21: 6.091067812
A22: 0.11 | B22: 0.7778174593 | C22: 0.7185274593 | D22: 7.071067812 | E22: 5.993067812
A23: 0.12 | B23: 0.8485281374 | C23: 0.7779681374 | D23: 7.071067812 | E23: 5.895067812
A24: 0.13 | B24: 0.9192388155 | C24: 0.8364288155 | D24: 7.071067812 | E24: 5.797067812
A25: 0.14 | B25: 0.9899494937 | C25: 0.8939094937 | D25: 7.071067812 | E25: 5.699067812
A26: 0.15 | B26: 1.060660172 | C26: 0.9504101718 | D26: 7.071067812 | E26: 5.601067812
A27: 0.16 | B27: 1.13137085 | C27: 1.00593085 | D27: 7.071067812 | E27: 5.503067812
A28: 0.17 | B28: 1.202081528 | C28: 1.060471528 | D28: 7.071067812 | E28: 5.405067812
A29: 0.18 | B29: 1.272792206 | C29: 1.114032206 | D29: 7.071067812 | E29: 5.307067812
A30: 0.19 | B30: 1.343502884 | C30: 1.166612884 | D30: 7.071067812 | E30: 5.209067812
A31: 0.2 | B31: 1.414213562 | C31: 1.218213562 | D31: 7.071067812 | E31: 5.111067812
A32: 0.21 | B32: 1.48492424 | C32: 1.26883424 | D32: 7.071067812 | E32: 5.013067812
A33: 0.22 | B33: 1.555634919 | C33: 1.318474919 | D33: 7.071067812 | E33: 4.915067812
A34: 0.23 | B34: 1.626345597 | C34: 1.367135597 | D34: 7.071067812 | E34: 4.817067812
A35: 0.24 | B35: 1.697056275 | C35: 1.414816275 | D35: 7.071067812 | E35: 4.719067812
A36: 0.25 | B36: 1.767766953 | C36: 1.461516953 | D36: 7.071067812 | E36: 4.621067812
A37: 0.26 | B37: 1.838477631 | C37: 1.507237631 | D37: 7.071067812 | E37: 4.523067812
A38: 0.27 | B38: 1.909188309 | C38: 1.551978309 | D38: 7.071067812 | E38: 4.425067812
A39: 0.28 | B39: 1.979898987 | C39: 1.595738987 | D39: 7.071067812 | E39: 4.327067812
A40: 0.29 | B40: 2.050609665 | C40: 1.638519665 | D40: 7.071067812 | E40: 4.229067812
A41: 0.3 | B41: 2.121320344 | C41: 1.680320344 | D41: 7.071067812 | E41: 4.131067812
A42: 0.31 | B42: 2.192031022 | C42: 1.721141022 | D42: 7.071067812 | E42: 4.033067812
A43: 0.32 | B43: 2.2627417 | C43: 1.7609817 | D43: 7.071067812 | E43: 3.935067812
A44: 0.33 | B44: 2.333452378 | C44: 1.799842378 | D44: 7.071067812 | E44: 3.837067812
A45: 0.34 | B45: 2.404163056 | C45: 1.837723056 | D45: 7.071067812 | E45: 3.739067812
A46: 0.35 | B46: 2.474873734 | C46: 1.874623734 | D46: 7.071067812 | E46: 3.641067812
A47: 0.36 | B47: 2.545584412 | C47: 1.910544412 | D47: 7.071067812 | E47: 3.543067812
A48: 0.37 | B48: 2.61629509 | C48: 1.94548509 | D48: 7.071067812 | E48: 3.445067812
A49: 0.38 | B49: 2.687005769 | C49: 1.979445769 | D49: 7.071067812 | E49: 3.347067812
A50: 0.39 | B50: 2.757716447 | C50: 2.012426447 | D50: 7.071067812 | E50: 3.249067812
A51: 0.4 | B51: 2.828427125 | C51: 2.044427125 | D51: 7.071067812 | E51: 3.151067812
A52: 0.41 | B52: 2.899137803 | C52: 2.075447803 | D52: 7.071067812 | E52: 3.053067812
A53: 0.42 | B53: 2.969848481 | C53: 2.105488481 | D53: 7.071067812 | E53: 2.955067812
A54: 0.43 | B54: 3.040559159 | C54: 2.134549159 | D54: 7.071067812 | E54: 2.857067812
A55: 0.44 | B55: 3.111269837 | C55: 2.162629837 | D55: 7.071067812 | E55: 2.759067812
A56: 0.45 | B56: 3.181980515 | C56: 2.189730515 | D56: 7.071067812 | E56: 2.661067812
A57: 0.46 | B57: 3.252691193 | C57: 2.215851193 | D57: 7.071067812 | E57: 2.563067812
A58: 0.47 | B58: 3.323401872 | C58: 2.240991872 | D58: 7.071067812 | E58: 2.465067812
A59: 0.48 | B59: 3.39411255 | C59: 2.26515255 | D59: 7.071067812 | E59: 2.367067812
A60: 0.49 | B60: 3.464823228 | C60: 2.288333228 | D60: 7.071067812 | E60: 2.269067812
A61: 0.5 | B61: 3.535533906 | C61: 2.310533906 | D61: 7.071067812 | E61: 2.171067812
A62: 0.51 | B62: 3.606244584 | C62: 2.331754584 | D62: 7.071067812 | E62: 2.073067812
A63: 0.52 | B63: 3.676955262 | C63: 2.351995262 | D63: 7.071067812 | E63: 1.975067812
A64: 0.53 | B64: 3.74766594 | C64: 2.37125594 | D64: 7.071067812 | E64: 1.877067812
A65: 0.54 | B65: 3.818376618 | C65: 2.389536618 | D65: 7.071067812 | E65: 1.779067812
A66: 0.55 | B66: 3.889087297 | C66: 2.406837297 | D66: 7.071067812 | E66: 1.681067812
A67: 0.56 | B67: 3.959797975 | C67: 2.423157975 | D67: 7.071067812 | E67: 1.583067812
A68: 0.57 | B68: 4.030508653 | C68: 2.438498653 | D68: 7.071067812 | E68: 1.485067812
A69: 0.58 | B69: 4.101219331 | C69: 2.452859331 | D69: 7.071067812 | E69: 1.387067812
A70: 0.59 | B70: 4.171930009 | C70: 2.466240009 | D70: 7.071067812 | E70: 1.289067812
A71: 0.6 | B71: 4.242640687 | C71: 2.478640687 | D71: 7.071067812 | E71: 1.191067812
A72: 0.61 | B72: 4.313351365 | C72: 2.490061365 | D72: 7.071067812 | E72: 1.093067812
A73: 0.62 | B73: 4.384062043 | C73: 2.500502043 | D73: 7.071067812 | E73: 0.9950678119
A74: 0.63 | B74: 4.454772721 | C74: 2.509962721 | D74: 7.071067812 | E74: 0.8970678119
A75: 0.64 | B75: 4.5254834 | C75: 2.5184434 | D75: 7.071067812 | E75: 0.7990678119
A76: 0.65 | B76: =$C$7*A76 -> 4.596194078 | C76: =$C$8*A76-0.5*9.8*A76^2 -> 2.525944078 | D76: =$C$7 -> 7.071067812 | E76: =IF(C76>=0,$C$8-9.8*A76,0) -> 0.7010678119
A77: =A76+$C$5 -> 0.66 | B77: 4.666904756 | C77: 2.532464756 | D77: 7.071067812 | E77: 0.6030678119
A78: 0.67 | B78: 4.737615434 | C78: 2.538005434 | D78: 7.071067812 | E78: 0.5050678119
A79: 0.68 | B79: 4.808326112 | C79: 2.542566112 | D79: 7.071067812 | E79: 0.4070678119
A80: 0.69 | B80: 4.87903679 | C80: 2.54614679 | D80: 7.071067812 | E80: 0.3090678119
A81: 0.7 | B81: 4.949747468 | C81: 2.548747468 | D81: 7.071067812 | E81: 0.2110678119
A82: 0.71 | B82: 5.020458146 | C82: 2.550368146 | D82: 7.071067812 | E82: 0.1130678119
A83: 0.72 | B83: 5.091168825 | C83: 2.551008825 | D83: 7.071067812 | E83: 0.01506781187
A84: 0.73 | B84: 5.161879503 | C84: 2.550669503 | D84: 7.071067812 | E84: -0.08293218813
A85: 0.74 | B85: 5.232590181 | C85: 2.549350181 | D85: 7.071067812 | E85: -0.1809321881
A86: 0.75 | B86: 5.303300859 | C86: 2.547050859 | D86: 7.071067812 | E86: -0.2789321881
A87: 0.76 | B87: 5.374011537 | C87: 2.543771537 | D87: 7.071067812 | E87: -0.3769321881
A88: 0.77 | B88: 5.444722215 | C88: 2.539512215 | D88: 7.071067812 | E88: -0.4749321881
A89: 0.78 | B89: 5.515432893 | C89: 2.534272893 | D89: 7.071067812 | E89: -0.5729321881
A90: 0.79 | B90: 5.586143571 | C90: 2.528053571 | D90: 7.071067812 | E90: -0.6709321881
A91: 0.8 | B91: 5.656854249 | C91: 2.520854249 | D91: 7.071067812 | E91: -0.7689321881
A92: 0.81 | B92: 5.727564928 | C92: 2.512674928 | D92: 7.071067812 | E92: -0.8669321881
A93: 0.82 | B93: 5.798275606 | C93: 2.503515606 | D93: 7.071067812 | E93: -0.9649321881
A94: 0.83 | B94: 5.868986284 | C94: 2.493376284 | D94: 7.071067812 | E94: -1.062932188
A95: 0.84 | B95: 5.939696962 | C95: 2.482256962 | D95: 7.071067812 | E95: -1.160932188
A96: 0.85 | B96: 6.01040764 | C96: 2.47015764 | D96: 7.071067812 | E96: -1.258932188
A97: 0.86 | B97: 6.081118318 | C97: 2.457078318 | D97: 7.071067812 | E97: -1.356932188
A98: 0.87 | B98: 6.151828996 | C98: 2.443018996 | D98: 7.071067812 | E98: -1.454932188
A99: 0.88 | B99: 6.222539674 | C99: 2.427979674 | D99: 7.071067812 | E99: -1.552932188
A100: 0.89 | B100: 6.293250353 | C100: 2.411960353 | D100: 7.071067812 | E100: -1.650932188
A101: 0.9 | B101: 6.363961031 | C101: 2.394961031 | D101: 7.071067812 | E101: -1.748932188
A102: 0.91 | B102: 6.434671709 | C102: 2.376981709 | D102: 7.071067812 | E102: -1.846932188
A103: 0.92 | B103: 6.505382387 | C103: 2.358022387 | D103: 7.071067812 | E103: -1.944932188
A104: 0.93 | B104: 6.576093065 | C104: 2.338083065 | D104: 7.071067812 | E104: -2.042932188
A105: 0.94 | B105: 6.646803743 | C105: 2.317163743 | D105: 7.071067812 | E105: -2.140932188
A106: 0.95 | B106: 6.717514421 | C106: 2.295264421 | D106: 7.071067812 | E106: -2.238932188
A107: 0.96 | B107: 6.788225099 | C107: 2.272385099 | D107: 7.071067812 | E107: -2.336932188
A108: 0.97 | B108: 6.858935778 | C108: 2.248525778 | D108: 7.071067812 | E108: -2.434932188
A109: 0.98 | B109: 6.929646456 | C109: 2.223686456 | D109: 7.071067812 | E109: -2.532932188
A110: 0.99 | B110: 7.000357134 | C110: 2.197867134 | D110: 7.071067812 | E110: -2.630932188
A111: 1 | B111: 7.071067812 | C111: 2.171067812 | D111: 7.071067812 | E111: -2.728932188
A112: 1.01 | B112: 7.14177849 | C112: 2.14328849 | D112: 7.071067812 | E112: -2.826932188
A113: 1.02 | B113: 7.212489168 | C113: 2.114529168 | D113: 7.071067812 | E113: -2.924932188
A114: 1.03 | B114: 7.283199846 | C114: 2.084789846 | D114: 7.071067812 | E114: -3.022932188
A115: 1.04 | B115: 7.353910524 | C115: 2.054070524 | D115: 7.071067812 | E115: -3.120932188
A116: 1.05 | B116: 7.424621202 | C116: 2.022371202 | D116: 7.071067812 | E116: -3.218932188
A117: 1.06 | B117: 7.495331881 | C117: 1.989691881 | D117: 7.071067812 | E117: -3.316932188
A118: 1.07 | B118: 7.566042559 | C118: 1.956032559 | D118: 7.071067812 | E118: -3.414932188
A119: 1.08 | B119: 7.636753237 | C119: 1.921393237 | D119: 7.071067812 | E119: -3.512932188
A120: 1.09 | B120: 7.707463915 | C120: 1.885773915 | D120: 7.071067812 | E120: -3.610932188
A121: 1.1 | B121: 7.778174593 | C121: 1.849174593 | D121: 7.071067812 | E121: -3.708932188
A122: 1.11 | B122: 7.848885271 | C122: 1.811595271 | D122: 7.071067812 | E122: -3.806932188
A123: 1.12 | B123: 7.919595949 | C123: 1.773035949 | D123: 7.071067812 | E123: -3.904932188
A124: 1.13 | B124: 7.990306627 | C124: 1.733496627 | D124: 7.071067812 | E124: -4.002932188
A125: 1.14 | B125: 8.061017306 | C125: 1.692977306 | D125: 7.071067812 | E125: -4.100932188
A126: 1.15 | B126: 8.131727984 | C126: 1.651477984 | D126: 7.071067812 | E126: -4.198932188
A127: 1.16 | B127: 8.202438662 | C127: 1.608998662 | D127: 7.071067812 | E127: -4.296932188
A128: 1.17 | B128: 8.27314934 | C128: 1.56553934 | D128: 7.071067812 | E128: -4.394932188
A129: 1.18 | B129: 8.343860018 | C129: 1.521100018 | D129: 7.071067812 | E129: -4.492932188
A130: 1.19 | B130: 8.414570696 | C130: 1.475680696 | D130: 7.071067812 | E130: -4.590932188
A131: 1.2 | B131: 8.485281374 | C131: 1.429281374 | D131: 7.071067812 | E131: -4.688932188
A132: 1.21 | B132: 8.555992052 | C132: 1.381902052 | D132: 7.071067812 | E132: -4.786932188
A133: 1.22 | B133: 8.62670273 | C133: 1.33354273 | D133: 7.071067812 | E133: -4.884932188
A134: 1.23 | B134: 8.697413409 | C134: 1.284203409 | D134: 7.071067812 | E134: -4.982932188
A135: 1.24 | B135: 8.768124087 | C135: 1.233884087 | D135: 7.071067812 | E135: -5.080932188
A136: 1.25 | B136: 8.838834765 | C136: 1.182584765 | D136: 7.071067812 | E136: -5.178932188
A137: 1.26 | B137: 8.909545443 | C137: 1.130305443 | D137: 7.071067812 | E137: -5.276932188
A138: 1.27 | B138: 8.980256121 | C138: 1.077046121 | D138: 7.071067812 | E138: -5.374932188
A139: 1.28 | B139: 9.050966799 | C139: 1.022806799 | D139: 7.071067812 | E139: -5.472932188
A140: 1.29 | B140: =$C$7*A140 -> 9.121677477 | C140: =$C$8*A140-0.5*9.8*A140^2 -> 0.9675874773 | D140: =$C$7 -> 7.071067812 | E140: =IF(C140>=0,$C$8-9.8*A140,0) -> -5.570932188
A141: =A140+$C$5 -> 1.3 | B141: 9.192388155 | C141: 0.9113881554 | D141: 7.071067812 | E141: -5.668932188
A142: 1.31 | B142: 9.263098834 | C142: 0.8542088335 | D142: 7.071067812 | E142: -5.766932188
A143: 1.32 | B143: 9.333809512 | C143: 0.7960495117 | D143: 7.071067812 | E143: -5.864932188
A144: 1.33 | B144: 9.40452019 | C144: 0.7369101898 | D144: 7.071067812 | E144: -5.962932188
A145: 1.34 | B145: 9.475230868 | C145: 0.6767908679 | D145: 7.071067812 | E145: -6.060932188
A146: 1.35 | B146: 9.545941546 | C146: 0.615691546 | D146: 7.071067812 | E146: -6.158932188
A147: 1.36 | B147: 9.616652224 | C147: 0.5536122241 | D147: 7.071067812 | E147: -6.256932188
A148: 1.37 | B148: 9.687362902 | C148: 0.4905529023 | D148: 7.071067812 | E148: -6.354932188
A149: 1.38 | B149: 9.75807358 | C149: 0.4265135804 | D149: 7.071067812 | E149: -6.452932188
A150: 1.39 | B150: 9.828784258 | C150: 0.3614942585 | D150: 7.071067812 | E150: -6.550932188
A151: 1.4 | B151: 9.899494937 | C151: 0.2954949366 | D151: 7.071067812 | E151: -6.648932188
A152: 1.41 | B152: 9.970205615 | C152: 0.2285156147 | D152: 7.071067812 | E152: -6.746932188
A153: 1.42 | B153: 10.04091629 | C153: 0.1605562928 | D153: 7.071067812 | E153: -6.844932188
A154: 1.43 | B154: 10.11162697 | C154: 0.09161697097 | D154: 7.071067812 | E154: -6.942932188
A155: 1.44 | B155: 10.18233765 | C155: 0.02169764909 | D155: 7.071067812 | E155: -7.040932188
A156: 1.45 | B156: 10.25304833 | C156: -0.0492016728 | D156: 7.071067812 | E156: 0
A157: 1.46 | B157: 10.32375901 | C157: -0.1210809947 | D157: 7.071067812 | E157: 0
A158: 1.47 | B158: 10.39446968 | C158: -0.1939403166 | D158: 7.071067812 | E158: 0
A159: 1.48 | B159: 10.46518036 | C159: -0.2677796384 | D159: 7.071067812 | E159: 0
A160: 1.49 | B160: 10.53589104 | C160: -0.3425989603 | D160: 7.071067812 | E160: 0
A161: 1.5 | B161: 10.60660172 | C161: -0.4183982822 | D161: 7.071067812 | E161: 0
A162: 1.51 | B162: 10.6773124 | C162: -0.4951776041 | D162: 7.071067812 | E162: 0
A163: 1.52 | B163: 10.74802307 | C163: -0.572936926 | D163: 7.071067812 | E163: 0
A164: 1.53 | B164: 10.81873375 | C164: -0.6516762478 | D164: 7.071067812 | E164: 0
A165: 1.54 | B165: 10.88944443 | C165: -0.7313955697 | D165: 7.071067812 | E165: 0
A166: 1.55 | B166: 10.96015511 | C166: -0.8120948916 | D166: 7.071067812 | E166: 0
A167: 1.56 | B167: 11.03086579 | C167: -0.8937742135 | D167: 7.071067812 | E167: 0
A168: 1.57 | B168: 11.10157646 | C168: -0.9764335354 | D168: 7.071067812 | E168: 0
A169: 1.58 | B169: 11.17228714 | C169: -1.060072857 | D169: 7.071067812 | E169: 0
A170: 1.59 | B170: 11.24299782 | C170: -1.144692179 | D170: 7.071067812 | E170: 0
A171: 1.6 | B171: 11.3137085 | C171: -1.230291501 | D171: 7.071067812 | E171: 0
A172: 1.61 | B172: 11.38441918 | C172: -1.316870823 | D172: 7.071067812 | E172: 0
A173: 1.62 | B173: 11.45512986 | C173: -1.404430145 | D173: 7.071067812 | E173: 0
A174: 1.63 | B174: 11.52584053 | C174: -1.492969467 | D174: 7.071067812 | E174: 0
A175: 1.64 | B175: 11.59655121 | C175: -1.582488789 | D175: 7.071067812 | E175: 0
A176: 1.65 | B176: 11.66726189 | C176: -1.67298811 | D176: 7.071067812 | E176: 0
A177: 1.66 | B177: 11.73797257 | C177: -1.764467432 | D177: 7.071067812 | E177: 0
A178: 1.67 | B178: 11.80868325 | C178: -1.856926754 | D178: 7.071067812 | E178: 0
A179: 1.68 | B179: 11.87939392 | C179: -1.950366076 | D179: 7.071067812 | E179: 0
A180: 1.69 | B180: 11.9501046 | C180: -2.044785398 | D180: 7.071067812 | E180: 0
A181: 1.7 | B181: 12.02081528 | C181: -2.14018472 | D181: 7.071067812 | E181: 0
A182: 1.71 | B182: 12.09152596 | C182: -2.236564042 | D182: 7.071067812 | E182: 0
A183: 1.72 | B183: 12.16223664 | C183: -2.333923364 | D183: 7.071067812 | E183: 0
A184: 1.73 | B184: 12.23294731 | C184: -2.432262685 | D184: 7.071067812 | E184: 0
A185: 1.74 | B185: 12.30365799 | C185: -2.531582007 | D185: 7.071067812 | E185: 0
A186: 1.75 | B186: 12.37436867 | C186: -2.631881329 | D186: 7.071067812 | E186: 0
A187: 1.76 | B187: 12.44507935 | C187: -2.733160651 | D187: 7.071067812 | E187: 0
A188: 1.77 | B188: 12.51579003 | C188: -2.835419973 | D188: 7.071067812 | E188: 0
A189: 1.78 | B189: 12.58650071 | C189: -2.938659295 | D189: 7.071067812 | E189: 0
A190: 1.79 | B190: 12.65721138 | C190: -3.042878617 | D190: 7.071067812 | E190: 0
A191: 1.8 | B191: 12.72792206 | C191: -3.148077939 | D191: 7.071067812 | E191: 0
A192: 1.81 | B192: 12.79863274 | C192: -3.254257261 | D192: 7.071067812 | E192: 0
A193: 1.82 | B193: 12.86934342 | C193: -3.361416582 | D193: 7.071067812 | E193: 0
A194: 1.83 | B194: 12.9400541 | C194: -3.469555904 | D194: 7.071067812 | E194: 0
A195: 1.84 | B195: 13.01076477 | C195: -3.578675226 | D195: 7.071067812 | E195: 0
A196: 1.85 | B196: 13.08147545 | C196: -3.688774548 | D196: 7.071067812 | E196: 0
A197: 1.86 | B197: 13.15218613 | C197: -3.79985387 | D197: 7.071067812 | E197: 0
A198: 1.87 | B198: 13.22289681 | C198: -3.911913192 | D198: 7.071067812 | E198: 0
A199: 1.88 | B199: 13.29360749 | C199: -4.024952514 | D199: 7.071067812 | E199: 0
A200: 1.89 | B200: 13.36431816 | C200: -4.138971836 | D200: 7.071067812 | E200: 0
A201: 1.9 | B201: 13.43502884 | C201: -4.253971157 | D201: 7.071067812 | E201: 0
A202: 1.91 | B202: 13.50573952 | C202: -4.369950479 | D202: 7.071067812 | E202: 0
A203: 1.92 | B203: 13.5764502 | C203: -4.486909801 | D203: 7.071067812 | E203: 0
... 7 more rows

Sheet Car Race
A1: 속도와 거리 | F1: \
A3: 자동차 A | B3: 초기위치 | D3: =M3 -> 19 | M3: 19
B4: 속도 | D4: =M4 -> 36 | M4: 36
A5: 자동차 B | B5: 초기위치 | D5: =M5 -> 22 | M5: 22
B6: 속도 | D6: =M6 -> 14 | M6: 14
A7: 자동차 C | B7: 초기위치 | D7: =M7 -> 98 | M7: 98
B8: 속도 | D8: =-M8 -> -33 | M8: 33
A9: 시간간격 | D9: =M9*0.01 -> 0.01 | M9: 1
A11: t | B11: S CarA | C11: S CarB | D11: S CarC
A12: 0 | B12: =$D$3+$D$4*A12 -> 19 | C12: =$D$5+$D$6*A12 -> 22 | D12: =$D$7+$D$8*A12 -> 98
A13: =A12+$D$9 -> 0.01 | B13: =$D$3+$D$4*A13 -> 19.36 | C13: =$D$5+$D$6*A13 -> 22.14 | D13: =$D$7+$D$8*A13 -> 97.67
A14: =A13+$D$9 -> 0.02 | B14: 19.72 | C14: 22.28 | D14: 97.34
A15: 0.03 | B15: 20.08 | C15: 22.42 | D15: 97.01
A16: 0.04 | B16: 20.44 | C16: 22.56 | D16: 96.68
A17: 0.05 | B17: 20.8 | C17: 22.7 | D17: 96.35
A18: 0.06 | B18: 21.16 | C18: 22.84 | D18: 96.02
A19: 0.07 | B19: 21.52 | C19: 22.98 | D19: 95.69
A20: 0.08 | B20: 21.88 | C20: 23.12 | D20: 95.36
A21: 0.09 | B21: 22.24 | C21: 23.26 | D21: 95.03
A22: 0.1 | B22: 22.6 | C22: 23.4 | D22: 94.7
A23: 0.11 | B23: 22.96 | C23: 23.54 | D23: 94.37
A24: 0.12 | B24: 23.32 | C24: 23.68 | D24: 94.04
A25: 0.13 | B25: 23.68 | C25: 23.82 | D25: 93.71
A26: 0.14 | B26: 24.04 | C26: 23.96 | D26: 93.38
A27: 0.15 | B27: 24.4 | C27: 24.1 | D27: 93.05
A28: 0.16 | B28: 24.76 | C28: 24.24 | D28: 92.72
A29: 0.17 | B29: 25.12 | C29: 24.38 | D29: 92.39
A30: 0.18 | B30: 25.48 | C30: 24.52 | D30: 92.06
A31: 0.19 | B31: 25.84 | C31: 24.66 | D31: 91.73
A32: 0.2 | B32: 26.2 | C32: 24.8 | D32: 91.4
A33: 0.21 | B33: 26.56 | C33: 24.94 | D33: 91.07
A34: 0.22 | B34: 26.92 | C34: 25.08 | D34: 90.74
A35: 0.23 | B35: 27.28 | C35: 25.22 | D35: 90.41
A36: 0.24 | B36: 27.64 | C36: 25.36 | D36: 90.08
A37: 0.25 | B37: 28 | C37: 25.5 | D37: 89.75
A38: 0.26 | B38: 28.36 | C38: 25.64 | D38: 89.42
A39: 0.27 | B39: 28.72 | C39: 25.78 | D39: 89.09
A40: 0.28 | B40: 29.08 | C40: 25.92 | D40: 88.76
A41: 0.29 | B41: 29.44 | C41: 26.06 | D41: 88.43
A42: 0.3 | B42: 29.8 | C42: 26.2 | D42: 88.1
A43: 0.31 | B43: 30.16 | C43: 26.34 | D43: 87.77
A44: 0.32 | B44: 30.52 | C44: 26.48 | D44: 87.44
A45: 0.33 | B45: 30.88 | C45: 26.62 | D45: 87.11
A46: 0.34 | B46: 31.24 | C46: 26.76 | D46: 86.78
A47: 0.35 | B47: 31.6 | C47: 26.9 | D47: 86.45
A48: 0.36 | B48: 31.96 | C48: 27.04 | D48: 86.12
A49: 0.37 | B49: 32.32 | C49: 27.18 | D49: 85.79
A50: 0.38 | B50: 32.68 | C50: 27.32 | D50: 85.46
A51: 0.39 | B51: 33.04 | C51: 27.46 | D51: 85.13
A52: 0.4 | B52: 33.4 | C52: 27.6 | D52: 84.8
A53: 0.41 | B53: 33.76 | C53: 27.74 | D53: 84.47
A54: 0.42 | B54: 34.12 | C54: 27.88 | D54: 84.14
A55: 0.43 | B55: 34.48 | C55: 28.02 | D55: 83.81
A56: 0.44 | B56: 34.84 | C56: 28.16 | D56: 83.48
A57: 0.45 | B57: 35.2 | C57: 28.3 | D57: 83.15
A58: 0.46 | B58: 35.56 | C58: 28.44 | D58: 82.82
A59: 0.47 | B59: 35.92 | C59: 28.58 | D59: 82.49
A60: 0.48 | B60: 36.28 | C60: 28.72 | D60: 82.16
A61: 0.49 | B61: 36.64 | C61: 28.86 | D61: 81.83
A62: 0.5 | B62: 37 | C62: 29 | D62: 81.5
A63: 0.51 | B63: 37.36 | C63: 29.14 | D63: 81.17
A64: 0.52 | B64: 37.72 | C64: 29.28 | D64: 80.84
A65: 0.53 | B65: 38.08 | C65: 29.42 | D65: 80.51
A66: 0.54 | B66: 38.44 | C66: 29.56 | D66: 80.18
A67: 0.55 | B67: 38.8 | C67: 29.7 | D67: 79.85
A68: 0.56 | B68: 39.16 | C68: 29.84 | D68: 79.52
A69: 0.57 | B69: 39.52 | C69: 29.98 | D69: 79.19
A70: 0.58 | B70: 39.88 | C70: 30.12 | D70: 78.86
A71: 0.59 | B71: 40.24 | C71: 30.26 | D71: 78.53
A72: 0.6 | B72: 40.6 | C72: 30.4 | D72: 78.2
A73: 0.61 | B73: 40.96 | C73: 30.54 | D73: 77.87
A74: 0.62 | B74: 41.32 | C74: 30.68 | D74: 77.54
A75: 0.63 | B75: 41.68 | C75: 30.82 | D75: 77.21
A76: 0.64 | B76: 42.04 | C76: 30.96 | D76: 76.88
A77: 0.65 | B77: =$D$3+$D$4*A77 -> 42.4 | C77: =$D$5+$D$6*A77 -> 31.1 | D77: =$D$7+$D$8*A77 -> 76.55
A78: =A77+$D$9 -> 0.66 | B78: 42.76 | C78: 31.24 | D78: 76.22
A79: 0.67 | B79: 43.12 | C79: 31.38 | D79: 75.89
A80: 0.68 | B80: 43.48 | C80: 31.52 | D80: 75.56
A81: 0.69 | B81: 43.84 | C81: 31.66 | D81: 75.23
A82: 0.7 | B82: 44.2 | C82: 31.8 | D82: 74.9
A83: 0.71 | B83: 44.56 | C83: 31.94 | D83: 74.57
A84: 0.72 | B84: 44.92 | C84: 32.08 | D84: 74.24
A85: 0.73 | B85: 45.28 | C85: 32.22 | D85: 73.91
A86: 0.74 | B86: 45.64 | C86: 32.36 | D86: 73.58
A87: 0.75 | B87: 46 | C87: 32.5 | D87: 73.25
A88: 0.76 | B88: 46.36 | C88: 32.64 | D88: 72.92
A89: 0.77 | B89: 46.72 | C89: 32.78 | D89: 72.59
A90: 0.78 | B90: 47.08 | C90: 32.92 | D90: 72.26
A91: 0.79 | B91: 47.44 | C91: 33.06 | D91: 71.93
A92: 0.8 | B92: 47.8 | C92: 33.2 | D92: 71.6
A93: 0.81 | B93: 48.16 | C93: 33.34 | D93: 71.27
A94: 0.82 | B94: 48.52 | C94: 33.48 | D94: 70.94
A95: 0.83 | B95: 48.88 | C95: 33.62 | D95: 70.61
A96: 0.84 | B96: 49.24 | C96: 33.76 | D96: 70.28
A97: 0.85 | B97: 49.6 | C97: 33.9 | D97: 69.95
A98: 0.86 | B98: 49.96 | C98: 34.04 | D98: 69.62
A99: 0.87 | B99: 50.32 | C99: 34.18 | D99: 69.29
A100: 0.88 | B100: 50.68 | C100: 34.32 | D100: 68.96
A101: 0.89 | B101: 51.04 | C101: 34.46 | D101: 68.63
A102: 0.9 | B102: 51.4 | C102: 34.6 | D102: 68.3
A103: 0.91 | B103: 51.76 | C103: 34.74 | D103: 67.97
A104: 0.92 | B104: 52.12 | C104: 34.88 | D104: 67.64
A105: 0.93 | B105: 52.48 | C105: 35.02 | D105: 67.31
A106: 0.94 | B106: 52.84 | C106: 35.16 | D106: 66.98
A107: 0.95 | B107: 53.2 | C107: 35.3 | D107: 66.65
A108: 0.96 | B108: 53.56 | C108: 35.44 | D108: 66.32
A109: 0.97 | B109: 53.92 | C109: 35.58 | D109: 65.99
A110: 0.98 | B110: 54.28 | C110: 35.72 | D110: 65.66
A111: 0.99 | B111: 54.64 | C111: 35.86 | D111: 65.33
A112: 1 | B112: 55 | C112: 36 | D112: 65
A113: 1.01 | B113: 55.36 | C113: 36.14 | D113: 64.67
A114: 1.02 | B114: 55.72 | C114: 36.28 | D114: 64.34
A115: 1.03 | B115: 56.08 | C115: 36.42 | D115: 64.01
A116: 1.04 | B116: 56.44 | C116: 36.56 | D116: 63.68
A117: 1.05 | B117: 56.8 | C117: 36.7 | D117: 63.35
A118: 1.06 | B118: 57.16 | C118: 36.84 | D118: 63.02
A119: 1.07 | B119: 57.52 | C119: 36.98 | D119: 62.69
A120: 1.08 | B120: 57.88 | C120: 37.12 | D120: 62.36
A121: 1.09 | B121: 58.24 | C121: 37.26 | D121: 62.03
A122: 1.1 | B122: 58.6 | C122: 37.4 | D122: 61.7
A123: 1.11 | B123: 58.96 | C123: 37.54 | D123: 61.37
A124: 1.12 | B124: 59.32 | C124: 37.68 | D124: 61.04
A125: 1.13 | B125: 59.68 | C125: 37.82 | D125: 60.71
A126: 1.14 | B126: 60.04 | C126: 37.96 | D126: 60.38
A127: 1.15 | B127: 60.4 | C127: 38.1 | D127: 60.05
A128: 1.16 | B128: 60.76 | C128: 38.24 | D128: 59.72
A129: 1.17 | B129: 61.12 | C129: 38.38 | D129: 59.39
A130: 1.18 | B130: 61.48 | C130: 38.52 | D130: 59.06
A131: 1.19 | B131: 61.84 | C131: 38.66 | D131: 58.73
A132: 1.2 | B132: 62.2 | C132: 38.8 | D132: 58.4
A133: 1.21 | B133: 62.56 | C133: 38.94 | D133: 58.07
A134: 1.22 | B134: 62.92 | C134: 39.08 | D134: 57.74
A135: 1.23 | B135: 63.28 | C135: 39.22 | D135: 57.41
A136: 1.24 | B136: 63.64 | C136: 39.36 | D136: 57.08
A137: 1.25 | B137: 64 | C137: 39.5 | D137: 56.75
A138: 1.26 | B138: 64.36 | C138: 39.64 | D138: 56.42
A139: 1.27 | B139: 64.72 | C139: 39.78 | D139: 56.09
A140: 1.28 | B140: 65.08 | C140: 39.92 | D140: 55.76
A141: 1.29 | B141: =$D$3+$D$4*A141 -> 65.44 | C141: =$D$5+$D$6*A141 -> 40.06 | D141: =$D$7+$D$8*A141 -> 55.43
A142: =A141+$D$9 -> 1.3 | B142: 65.8 | C142: 40.2 | D142: 55.1
A143: 1.31 | B143: 66.16 | C143: 40.34 | D143: 54.77
A144: 1.32 | B144: 66.52 | C144: 40.48 | D144: 54.44
A145: 1.33 | B145: 66.88 | C145: 40.62 | D145: 54.11
A146: 1.34 | B146: 67.24 | C146: 40.76 | D146: 53.78
A147: 1.35 | B147: 67.6 | C147: 40.9 | D147: 53.45
A148: 1.36 | B148: 67.96 | C148: 41.04 | D148: 53.12
A149: 1.37 | B149: 68.32 | C149: 41.18 | D149: 52.79
A150: 1.38 | B150: 68.68 | C150: 41.32 | D150: 52.46
A151: 1.39 | B151: 69.04 | C151: 41.46 | D151: 52.13
A152: 1.4 | B152: 69.4 | C152: 41.6 | D152: 51.8
A153: 1.41 | B153: 69.76 | C153: 41.74 | D153: 51.47
A154: 1.42 | B154: 70.12 | C154: 41.88 | D154: 51.14
A155: 1.43 | B155: 70.48 | C155: 42.02 | D155: 50.81
A156: 1.44 | B156: 70.84 | C156: 42.16 | D156: 50.48
A157: 1.45 | B157: 71.2 | C157: 42.3 | D157: 50.15
A158: 1.46 | B158: 71.56 | C158: 42.44 | D158: 49.82
A159: 1.47 | B159: 71.92 | C159: 42.58 | D159: 49.49
A160: 1.48 | B160: 72.28 | C160: 42.72 | D160: 49.16
A161: 1.49 | B161: 72.64 | C161: 42.86 | D161: 48.83
A162: 1.5 | B162: 73 | C162: 43 | D162: 48.5
A163: 1.51 | B163: 73.36 | C163: 43.14 | D163: 48.17
A164: 1.52 | B164: 73.72 | C164: 43.28 | D164: 47.84
A165: 1.53 | B165: 74.08 | C165: 43.42 | D165: 47.51
A166: 1.54 | B166: 74.44 | C166: 43.56 | D166: 47.18
A167: 1.55 | B167: 74.8 | C167: 43.7 | D167: 46.85
A168: 1.56 | B168: 75.16 | C168: 43.84 | D168: 46.52
A169: 1.57 | B169: 75.52 | C169: 43.98 | D169: 46.19
A170: 1.58 | B170: 75.88 | C170: 44.12 | D170: 45.86
A171: 1.59 | B171: 76.24 | C171: 44.26 | D171: 45.53
A172: 1.6 | B172: 76.6 | C172: 44.4 | D172: 45.2
A173: 1.61 | B173: 76.96 | C173: 44.54 | D173: 44.87
A174: 1.62 | B174: 77.32 | C174: 44.68 | D174: 44.54
A175: 1.63 | B175: 77.68 | C175: 44.82 | D175: 44.21
A176: 1.64 | B176: 78.04 | C176: 44.96 | D176: 43.88
A177: 1.65 | B177: 78.4 | C177: 45.1 | D177: 43.55
A178: 1.66 | B178: 78.76 | C178: 45.24 | D178: 43.22
A179: 1.67 | B179: 79.12 | C179: 45.38 | D179: 42.89
A180: 1.68 | B180: 79.48 | C180: 45.52 | D180: 42.56
A181: 1.69 | B181: 79.84 | C181: 45.66 | D181: 42.23
A182: 1.7 | B182: 80.2 | C182: 45.8 | D182: 41.9
A183: 1.71 | B183: 80.56 | C183: 45.94 | D183: 41.57
A184: 1.72 | B184: 80.92 | C184: 46.08 | D184: 41.24
A185: 1.73 | B185: 81.28 | C185: 46.22 | D185: 40.91
A186: 1.74 | B186: 81.64 | C186: 46.36 | D186: 40.58
A187: 1.75 | B187: 82 | C187: 46.5 | D187: 40.25
A188: 1.76 | B188: 82.36 | C188: 46.64 | D188: 39.92
A189: 1.77 | B189: 82.72 | C189: 46.78 | D189: 39.59
A190: 1.78 | B190: 83.08 | C190: 46.92 | D190: 39.26
A191: 1.79 | B191: 83.44 | C191: 47.06 | D191: 38.93
A192: 1.8 | B192: 83.8 | C192: 47.2 | D192: 38.6
A193: 1.81 | B193: 84.16 | C193: 47.34 | D193: 38.27
A194: 1.82 | B194: 84.52 | C194: 47.48 | D194: 37.94
A195: 1.83 | B195: 84.88 | C195: 47.62 | D195: 37.61
A196: 1.84 | B196: 85.24 | C196: 47.76 | D196: 37.28
A197: 1.85 | B197: 85.6 | C197: 47.9 | D197: 36.95
A198: 1.86 | B198: 85.96 | C198: 48.04 | D198: 36.62
A199: 1.87 | B199: 86.32 | C199: 48.18 | D199: 36.29
A200: 1.88 | B200: 86.68 | C200: 48.32 | D200: 35.96
A201: 1.89 | B201: 87.04 | C201: 48.46 | D201: 35.63
A202: 1.9 | B202: 87.4 | C202: 48.6 | D202: 35.3
... 10 more rows

Sheet Wave Synthesis
A1: Wave Synthesis
A3: Amplitude | C3: Frequency | E3: Phase
B4: =M4*0.01 -> 1 | D4: =N4 -> 1 | F4: =O4*PI()/180 -> 0 | M4: 100 | N4: 1 | O4: 0
B5: =M5*0.01 -> 0.1 | D5: =N5 -> 0 | F5: =O5*PI()/180 -> 0 | M5: 10 | N5: 0 | O5: 0
B6: =0.01*M6 -> 0.3333 | D6: 3 | F6: 0 | M6: 33.33 | N6: 3 | O6: 0
B7: 0 | D7: 0 | F7: 0 | M7: 0 | N7: 0 | O7: 0
B8: 0.2 | D8: 5 | F8: 0 | M8: 20 | N8: 5 | O8: 0
B9: 0 | D9: 0 | F9: 0 | M9: 0 | N9: 0 | O9: 0
B10: 0.1429 | D10: 7 | F10: 0 | M10: 14.29 | N10: 7 | O10: 0
B11: 0 | D11: 0 | F11: 0 | M11: 0 | N11: 0 | O11: 0
B12: 0.1111 | D12: 9 | F12: 0 | M12: 11.11 | N12: 9 | O12: 0
B13: 0 | D13: 0 | F13: 0 | M13: 0 | N13: 0 | O13: 0
B14: 0.0909 | D14: 11 | F14: 0 | M14: 9.09 | N14: 11 | O14: 0
B15: 0 | D15: 0 | F15: 0 | M15: 0 | N15: 0 | O15: 0
B16: 0.0769 | D16: 13 | F16: 0 | M16: 7.69 | N16: 13 | O16: 0
B17: 0 | D17: 0 | F17: 0 | H17: Waveform Selection | M17: 0 | N17: 0 | O17: 0
B18: 0.0667 | D18: 15 | F18: 0 | M18: 6.67 | N18: 15 | O18: 0
B19: 0 | D19: 0 | F19: 0 | K19: Rectangular | M19: 0 | N19: 0 | O19: 0
B20: 0.0588 | D20: 17 | F20: 0 | K20: Triangular | M20: 5.88 | N20: 17 | O20: 0
B21: 0 | D21: 0 | F21: 0 | K21: SawTooth | M21: 0 | N21: 0 | O21: 0
B22: 0.0526 | D22: 19 | F22: 0 | M22: 5.26 | N22: 19 | O22: 0
B23: 0 | D23: 0 | F23: 0 | M23: 0 | N23: 0 | O23: 0
A25: Time Step | C25: =M25*0.01 -> 0.01 | M25: 1
A30: t | B30: Wave 1 | C30: Wave 2 | D30: Wave 3 | E30: Wave 4 | F30: Wave 5 | G30: Wave 6 | H30: Wave 7 | I30: Wave 8 | J30: Wave 9 | K30: Wave 10 | L30: Wave 11 | M30: Wave 12 | N30: Wave 13 | O30: Wave 14 | P30: Wave 15 | Q30: Wave 16 | R30: Wave 17 | S30: Wave 18 | T30: Wave 19 | U30: Wave 20 | V30: S Wave
A31: 0 | B31: =$B$4*SIN(2*PI()*$D$4*A31+$F$4) -> 0 | C31: =$B$5*SIN(2*PI()*$D$5*A31+$F$5) -> 0 | D31: =$B$6*SIN(2*PI()*$D$6*A31+$F$6) -> 0 | E31: =$B$7*SIN(2*PI()*$D$7*A31+$F$7) -> 0 | F31: =$B$8*SIN(2*PI()*$D$8*A31+$F$8) -> 0 | G31: =$B$9*SIN(2*PI()*$D$9*A31+$F$9) -> 0 | H31: =$B$10*SIN(2*PI()*$D$10*A31+$F$10) -> 0 | I31: =$B$11*SIN(2*PI()*$D$11*A31+$F$11) -> 0 | J31: =$B$12*SIN(2*PI()*$D$12*A31+$F$12) -> 0 | K31: =$B$13*SIN(2*PI()*$D$13*A31+$F$13) -> 0 | L31: =$B$14*SIN(2*PI()*$D$14*A31+$F$14) -> 0 | M31: =$B$15*SIN(2*PI()*$D$15*A31+$F$15) -> 0 | N31: =$B$16*SIN(2*PI()*$D$16*A31+$F$16) -> 0 | O31: =$B$17*SIN(2*PI()*$D$17*A31+$F$17) -> 0 | P31: =$B$18*SIN(2*PI()*$D$18*A31+$F$18) -> 0 | Q31: =$B$19*SIN(2*PI()*$D$19*A31+$F$19) -> 0 | R31: =$B$20*SIN(2*PI()*$D$20*A31+$F$20) -> 0 | S31: =$B$21*SIN(2*PI()*$D$21*A31+$F$21) -> 0 | T31: =$B$22*SIN(2*PI()*$D$22*A31+$F$22) -> 0 | U31: =$B$23*SIN(2*PI()*$D$23*A31+$F$23) -> 0 | V31: =SUM(B31:U31) -> 0
A32: =A31+$C$25 -> 0.01 | B32: =$B$4*SIN(2*PI()*$D$4*A32+$F$4) -> 0.06279051953 | C32: =$B$5*SIN(2*PI()*$D$5*A32+$F$5) -> 0 | D32: =$B$6*SIN(2*PI()*$D$6*A32+$F$6) -> 0.06245419215 | E32: =$B$7*SIN(2*PI()*$D$7*A32+$F$7) -> 0 | F32: =$B$8*SIN(2*PI()*$D$8*A32+$F$8) -> 0.06180339887 | G32: =$B$9*SIN(2*PI()*$D$9*A32+$F$9) -> 0 | H32: =$B$10*SIN(2*PI()*$D$10*A32+$F$10) -> 0.06084386076 | I32: =$B$11*SIN(2*PI()*$D$11*A32+$F$11) -> 0 | J32: =$B$12*SIN(2*PI()*$D$12*A32+$F$12) -> 0.05953035692 | K32: =$B$13*SIN(2*PI()*$D$13*A32+$F$13) -> 0 | L32: =$B$14*SIN(2*PI()*$D$14*A32+$F$14) -> 0.05794184067 | M32: =$B$15*SIN(2*PI()*$D$15*A32+$F$15) -> 0 | N32: =$B$16*SIN(2*PI()*$D$16*A32+$F$16) -> 0.05605768745 | O32: =$B$17*SIN(2*PI()*$D$17*A32+$F$17) -> 0 | P32: =$B$18*SIN(2*PI()*$D$18*A32+$F$18) -> 0.05396143352 | Q32: =$B$19*SIN(2*PI()*$D$19*A32+$F$19) -> 0 | R32: =$B$20*SIN(2*PI()*$D$20*A32+$F$20) -> 0.05152683279 | S32: =$B$21*SIN(2*PI()*$D$21*A32+$F$21) -> 0 | T32: =$B$22*SIN(2*PI()*$D$22*A32+$F$22) -> 0.04890624316 | U32: =$B$23*SIN(2*PI()*$D$23*A32+$F$23) -> 0 | V32: =SUM(B32:U32) -> 0.5758163658
A33: =A32+$C$25 -> 0.02 | B33: =$B$4*SIN(2*PI()*$D$4*A33+$F$4) -> 0.1253332336 | C33: =$B$5*SIN(2*PI()*$D$5*A33+$F$5) -> 0 | D33: =$B$6*SIN(2*PI()*$D$6*A33+$F$6) -> 0.1226959134 | E33: =$B$7*SIN(2*PI()*$D$7*A33+$F$7) -> 0 | F33: =$B$8*SIN(2*PI()*$D$8*A33+$F$8) -> 0.1175570505 | G33: =$B$9*SIN(2*PI()*$D$9*A33+$F$9) -> 0 | H33: =$B$10*SIN(2*PI()*$D$10*A33+$F$10) -> 0.1101063424 | I33: =$B$11*SIN(2*PI()*$D$11*A33+$F$11) -> 0 | J33: =$B$12*SIN(2*PI()*$D$12*A33+$F$12) -> 0.1005262855 | K33: =$B$13*SIN(2*PI()*$D$13*A33+$F$13) -> 0 | L33: =$B$14*SIN(2*PI()*$D$14*A33+$F$14) -> 0.08928991109 | M33: =$B$15*SIN(2*PI()*$D$15*A33+$F$15) -> 0 | N33: =$B$16*SIN(2*PI()*$D$16*A33+$F$16) -> 0.07674825542 | O33: =$B$17*SIN(2*PI()*$D$17*A33+$F$17) -> 0 | P33: =$B$18*SIN(2*PI()*$D$18*A33+$F$18) -> 0.06343546964 | Q33: =$B$19*SIN(2*PI()*$D$19*A33+$F$19) -> 0 | R33: =$B$20*SIN(2*PI()*$D$20*A33+$F$20) -> 0.04964648202 | S33: =$B$21*SIN(2*PI()*$D$21*A33+$F$21) -> 0 | T33: =$B$22*SIN(2*PI()*$D$22*A33+$F$22) -> 0.03600717777 | U33: =$B$23*SIN(2*PI()*$D$23*A33+$F$23) -> 0 | V33: =SUM(B33:U33) -> 0.8913461213
A34: 0.03 | B34: 0.1873813146 | C34: 0 | D34: 0.1785910708 | E34: 0 | F34: 0.1618033989 | G34: 0 | H34: 0.1384105337 | I34: 0 | J34: 0.1102239433 | K34: 0 | L34: 0.07965627722 | M34: 0 | N34: 0.04901790481 | O34: 0 | P34: 0.02061143352 | Q34: 0 | R34: -0.003692082548 | S34: 0 | T34: -0.02239599074 | U34: 0 | V34: 0.8996078035
A35: 0.04 | B35: 0.2486898872 | C35: 0 | D35: 0.2281595504 | E35: 0 | F35: 0.1902113033 | G35: 0 | H35: 0.1403688481 | I35: 0 | J35: 0.08560402127 | K35: 0 | L35: 0.03346252184 | M35: 0 | N35: -0.009638125661 | O35: 0 | P35: -0.03920527633 | Q35: 0 | R35: -0.05320383069 | S35: 0 | T35: -0.05249620592 | U35: 0 | V35: 0.7719526935
A36: 0.05 | B36: 0.3090169944 | C36: 0 | D36: 0.2696453642 | E36: 0 | F36: 0.2 | G36: 0 | H36: 0.1156085285 | I36: 0 | J36: 0.03433178808 | K36: 0 | L36: -0.02808964479 | M36: 0 | N36: -0.06221340687 | O36: 0 | P36: -0.0667 | Q36: 0 | R36: -0.04757019927 | S36: 0 | T36: -0.0162542939 | U36: 0 | V36: 0.7077751303
A37: 0.06 | B37: 0.3681245527 | C37: 0 | D37: 0.3015788566 | E37: 0 | F37: 0.1902113033 | G37: 0 | H37: 0.06884260003 | I37: 0 | J37: -0.02762944646 | K37: 0 | L37: -0.07674940843 | M37: 0 | N37: -0.07553788958 | O37: 0 | P37: -0.03920527633 | Q37: 0 | R37: 0.007369594134 | S37: 0 | T37: 0.04052899657 | U37: 0 | V37: 0.7575338825
A38: 0.07 | B38: 0.4257792916 | C38: 0 | D38: 0.3228287676 | E38: 0 | F38: 0.1618033989 | G38: 0 | H38: 0.008972765241 | I38: 0 | J38: -0.08098841451 | K38: 0 | L38: -0.09018322635 | M38: 0 | N38: -0.04120508053 | O38: 0 | P38: 0.02061143352 | Q38: 0 | R38: 0.05467085737 | S38: 0 | T38: 0.04609373137 | U38: 0 | V38: 0.8283835242
A39: 0.08 | B39: 0.4817536741 | C39: 0 | D39: 0.3326423086 | E39: 0 | F39: 0.1175570505 | G39: 0 | H39: -0.05260499858 | I39: 0 | J39: -0.1091321136 | K39: 0 | L39: -0.06222533193 | M39: 0 | N39: 0.01912425232 | O39: 0 | P39: 0.06343546964 | Q39: 0 | R39: 0.04530617868 | S39: 0 | T39: -0.006592528085 | U39: 0 | V39: 0.8292639616
A40: 0.09 | B40: 0.535826795 | C40: 0 | D40: 0.3306718299 | E40: 0 | F40: 0.06180339887 | G40: 0 | H40: -0.1041696169 | I40: 0 | J40: -0.1032981676 | K40: 0 | L40: -0.005707658225 | M40: 0 | N40: 0.0673879837 | O40: 0 | P40: 0.05396143352 | Q40: 0 | R40: -0.0110180213 | S40: 0 | T40: -0.05094747428 | U40: 0 | V40: 0.7745105028
A41: 0.1 | B41: 0.5877852523 | C41: 0 | D41: 0.3169871369 | E41: 0 | F41: 1.133208111e-16 | G41: 0 | H41: -0.1359059762 | I41: 0 | J41: -0.06530294153 | K41: 0 | L41: 0.05342967943 | M41: 0 | N41: 0.0731362461 | O41: 0 | P41: 1.429982218e-16 | Q41: 0 | R41: -0.05592212316 | S41: 0 | T41: -0.03091750427 | U41: 0 | V41: 0.7432897696
A42: 0.11 | B42: 0.6374239897 | C42: 0 | D42: 0.2920730165 | E42: 0 | F42: -0.06180339887 | G42: 0 | H42: -0.1417731908 | I42: 0 | J42: -0.00697602672 | K42: 0 | L42: 0.08804420935 | M42: 0 | N42: 0.03274242752 | O42: 0 | P42: -0.05396143352 | Q42: 0 | R42: -0.04286335529 | S42: 0 | T42: 0.02818448942 | U42: 0 | V42: 0.7710907273
A43: 0.12 | B43: 0.6845471059 | C43: 0 | D43: 0.2568120638 | E43: 0 | F43: -0.1175570505 | G43: 0 | H43: -0.1206544606 | I43: 0 | J43: 0.05352283319 | K43: 0 | L43: 0.08224877907 | M43: 0 | N43: -0.0283087781 | O43: 0 | P43: -0.06343546964 | Q43: 0 | R43: 0.01462296537 | S43: 0 | T43: 0.05166830939 | U43: 0 | V43: 0.813466298
A44: 0.13 | B44: 0.7289686274 | C44: 0 | D44: 0.2124534158 | E44: 0 | F44: -0.1618033989 | G44: 0 | H44: -0.076569649 | I44: 0 | J44: 0.09735767215 | K44: 0 | L44: 0.0387033376 | M44: 0 | N44: -0.07149981176 | O44: 0 | P44: -0.02061143352 | Q44: 0 | R44: 0.05695268987 | S44: 0 | T44: 0.009856257147 | U44: 0 | V44: 0.8138077068
A45: 0.14 | B45: 0.7705132428 | C45: 0 | D45: 0.1605684996 | E45: 0 | F45: -0.1902113033 | G45: 0 | H45: -0.01791011908 | I45: 0 | J45: 0.1108807695 | K45: 0 | L45: -0.02260591074 | M45: 0 | N45: -0.06958120033 | O45: 0 | P45: 0.03920527633 | Q45: 0 | R45: 0.04025136983 | S45: 0 | T45: -0.04441164888 | U45: 0 | V45: 0.7766989757
A46: 0.15 | B46: 0.8090169944 | C46: 0 | D46: 0.1029953642 | E46: 0 | F46: -0.2 | G46: 0 | H46: 0.0441585285 | I46: 0 | J46: 0.08988178808 | K46: 0 | L46: -0.07353964479 | M46: 0 | N46: -0.02376340687 | O46: 0 | P46: 0.0667 | Q46: 0 | R46: -0.01817019927 | S46: 0 | T46: -0.0425542939 | U46: 0 | V46: 0.7547251303
A47: 0.16 | B47: 0.8443279255 | C47: 0 | D47: 0.04177356675 | E47: 0 | F47: -0.1902113033 | G47: 0 | H47: 0.09782178144 | I47: 0 | J47: 0.0408986378 | K47: 0 | L47: -0.09072062961 | M47: 0 | N47: 0.03704685754 | O47: 0 | P47: 0.03920527633 | Q47: 0 | R47: -0.05775849034 | S47: 0 | T47: 0.01308108806 | U47: 0 | V47: 0.7754647102
A48: 0.17 | B48: 0.87630668 | C48: 0 | D48: -0.02092808016 | E48: 0 | F48: -0.1618033989 | G48: 0 | H48: 0.1328650598 | I48: 0 | J48: -0.02081806405 | K48: 0 | L48: -0.06626324823 | M48: 0 | N48: 0.07448404509 | O48: 0 | P48: -0.02061143352 | Q48: 0 | R48: -0.0374805306 | S48: 0 | T48: 0.05218523329 | U48: 0 | V48: 0.8079362628
A49: 0.18 | B49: 0.9048270525 | C49: 0 | D49: -0.08288833939 | E49: 0 | F49: -0.1175570505 | G49: 0 | H49: 0.1426180195 | I49: 0 | J49: -0.07605318347 | K49: 0 | L49: -0.01139279093 | M49: 0 | N49: 0.06492881747 | O49: 0 | P49: -0.06343546964 | Q49: 0 | R49: 0.0216457237 | S49: 0 | T49: 0.02534024326 | U49: 0 | V49: 0.8080330225
A50: 0.19 | B50: 0.9297764859 | C50: 0 | D50: -0.1419122379 | E50: 0 | F50: -0.06180339887 | G50: 0 | H50: 0.1252242246 | I50: 0 | J50: -0.1076095892 | K50: 0 | L50: 0.04870665566 | M50: 0 | N50: 0.01440962309 | O50: 0 | P50: -0.05396143352 | Q50: 0 | R50: 0.05833634444 | S50: 0 | T50: -0.03352850186 | U50: 0 | V50: 0.7776381723
A51: 0.2 | B51: 0.9510565163 | C51: 0 | D51: -0.1959088246 | E51: 0 | F51: 1.286297457e-16 | G51: 0 | H51: 0.08399451255 | I51: 0 | J51: -0.105662379 | K51: 0 | L51: 0.08645103733 | M51: 0 | N51: -0.0452006859 | O51: 0 | P51: 1.879355612e-16 | Q51: 0 | R51: 0.03456177283 | S51: 0 | T51: -0.05002557276 | U51: 0 | V51: 0.7592663768
A52: 0.21 | B52: 0.9685831611 | C52: 0 | D52: -0.2429652435 | E52: 0 | F52: 0.06180339887 | G52: 0 | H52: 0.02677678985 | I52: 0 | J52: -0.07081780526 | K52: 0 | L52: 0.08451668257 | M52: 0 | N52: -0.07629362053 | O52: 0 | P52: 0.05396143352 | Q52: 0 | R52: -0.02503582234 | S52: 0 | T52: -0.003302781327 | U52: 0 | V52: 0.777226193
A53: 0.22 | B53: 0.9822872507 | C53: 0 | D53: -0.2814144976 | E53: 0 | F53: 0.1175570505 | G53: 0 | H53: -0.03553778488 | I53: 0 | J53: -0.01392452225 | K53: 0 | L53: 0.04379140898 | M53: 0 | N53: -0.05925246837 | O53: 0 | P53: 0.06343546964 | Q53: 0 | R53: -0.05868397163 | S53: 0 | T53: 0.04759390296 | U53: 0 | V53: 0.8058518381
A54: 0.23 | B54: 0.9921147013 | C54: 0 | D54: -0.3098945027 | E54: 0 | F54: 0.1618033989 | G54: 0 | H54: -0.09108788814 | I54: 0 | J54: 0.04730407929 | K54: 0 | L54: -0.0170329615 | M54: 0 | N54: -0.004828590952 | O54: 0 | P54: 0.02061143352 | Q54: 0 | R54: -0.03150661554 | S54: 0 | T54: 0.0383437498 | U54: 0 | V54: 0.8058268039
A55: 0.24 | B55: 0.9980267284 | C55: 0 | D55: -0.3273963407 | E55: 0 | F55: 0.1902113033 | G55: 0 | H55: -0.1292997858 | I55: 0 | J55: 0.09380483252 | K55: 0 | L55: -0.07003965377 | M55: 0 | N55: 0.05264167245 | O55: 0 | P55: -0.03920527633 | Q55: 0 | R55: 0.02832711604 | S55: 0 | T55: -0.01936335147 | U55: 0 | V55: 0.7777072447
A56: 0.25 | B56: 1 | C56: 0 | D56: -0.3333 | E56: 0 | F56: 0.2 | G56: 0 | H56: -0.1429 | I56: 0 | J56: 0.1111 | K56: 0 | L56: -0.0909 | M56: 0 | N56: 0.0769 | O56: 0 | P56: -0.0667 | Q56: 0 | R56: 0.0588 | S56: 0 | T56: -0.0526 | U56: 0 | V56: 0.7604
A57: 0.26 | B57: 0.9980267284 | C57: 0 | D57: -0.3273963407 | E57: 0 | F57: 0.1902113033 | G57: 0 | H57: -0.1292997858 | I57: 0 | J57: 0.09380483252 | K57: 0 | L57: -0.07003965377 | M57: 0 | N57: 0.05264167245 | O57: 0 | P57: -0.03920527633 | Q57: 0 | R57: 0.02832711604 | S57: 0 | T57: -0.01936335147 | U57: 0 | V57: 0.7777072447
A58: 0.27 | B58: 0.9921147013 | C58: 0 | D58: -0.3098945027 | E58: 0 | F58: 0.1618033989 | G58: 0 | H58: -0.09108788814 | I58: 0 | J58: 0.04730407929 | K58: 0 | L58: -0.0170329615 | M58: 0 | N58: -0.004828590952 | O58: 0 | P58: 0.02061143352 | Q58: 0 | R58: -0.03150661554 | S58: 0 | T58: 0.0383437498 | U58: 0 | V58: 0.8058268039
A59: 0.28 | B59: 0.9822872507 | C59: 0 | D59: -0.2814144976 | E59: 0 | F59: 0.1175570505 | G59: 0 | H59: -0.03553778488 | I59: 0 | J59: -0.01392452225 | K59: 0 | L59: 0.04379140898 | M59: 0 | N59: -0.05925246837 | O59: 0 | P59: 0.06343546964 | Q59: 0 | R59: -0.05868397163 | S59: 0 | T59: 0.04759390296 | U59: 0 | V59: 0.8058518381
A60: 0.29 | B60: 0.9685831611 | C60: 0 | D60: -0.2429652435 | E60: 0 | F60: 0.06180339887 | G60: 0 | H60: 0.02677678985 | I60: 0 | J60: -0.07081780526 | K60: 0 | L60: 0.08451668257 | M60: 0 | N60: -0.07629362053 | O60: 0 | P60: 0.05396143352 | Q60: 0 | R60: -0.02503582234 | S60: 0 | T60: -0.003302781327 | U60: 0 | V60: 0.777226193
A61: 0.3 | B61: 0.9510565163 | C61: 0 | D61: -0.1959088246 | E61: 0 | F61: -6.370338285e-16 | G61: 0 | H61: 0.08399451255 | I61: 0 | J61: -0.105662379 | K61: 0 | L61: 0.08645103733 | M61: 0 | N61: -0.0452006859 | O61: 0 | P61: -4.00386343e-16 | Q61: 0 | R61: 0.03456177283 | S61: 0 | T61: -0.05002557276 | U61: 0 | V61: 0.7592663768
A62: 0.31 | B62: 0.9297764859 | C62: 0 | D62: -0.1419122379 | E62: 0 | F62: -0.06180339887 | G62: 0 | H62: 0.1252242246 | I62: 0 | J62: -0.1076095892 | K62: 0 | L62: 0.04870665566 | M62: 0 | N62: 0.01440962309 | O62: 0 | P62: -0.05396143352 | Q62: 0 | R62: 0.05833634444 | S62: 0 | T62: -0.03352850186 | U62: 0 | V62: 0.7776381723
A63: 0.32 | B63: 0.9048270525 | C63: 0 | D63: -0.08288833939 | E63: 0 | F63: -0.1175570505 | G63: 0 | H63: 0.1426180195 | I63: 0 | J63: -0.07605318347 | K63: 0 | L63: -0.01139279093 | M63: 0 | N63: 0.06492881747 | O63: 0 | P63: -0.06343546964 | Q63: 0 | R63: 0.0216457237 | S63: 0 | T63: 0.02534024326 | U63: 0 | V63: 0.8080330225
A64: 0.33 | B64: 0.87630668 | C64: 0 | D64: -0.02092808016 | E64: 0 | F64: -0.1618033989 | G64: 0 | H64: 0.1328650598 | I64: 0 | J64: -0.02081806405 | K64: 0 | L64: -0.06626324823 | M64: 0 | N64: 0.07448404509 | O64: 0 | P64: -0.02061143352 | Q64: 0 | R64: -0.0374805306 | S64: 0 | T64: 0.05218523329 | U64: 0 | V64: 0.8079362628
A65: 0.34 | B65: 0.8443279255 | C65: 0 | D65: 0.04177356675 | E65: 0 | F65: -0.1902113033 | G65: 0 | H65: 0.09782178144 | I65: 0 | J65: 0.0408986378 | K65: 0 | L65: -0.09072062961 | M65: 0 | N65: 0.03704685754 | O65: 0 | P65: 0.03920527633 | Q65: 0 | R65: -0.05775849034 | S65: 0 | T65: 0.01308108806 | U65: 0 | V65: 0.7754647102
A66: 0.35 | B66: 0.8090169944 | C66: 0 | D66: 0.1029953642 | E66: 0 | F66: -0.2 | G66: 0 | H66: 0.0441585285 | I66: 0 | J66: 0.08988178808 | K66: 0 | L66: -0.07353964479 | M66: 0 | N66: -0.02376340687 | O66: 0 | P66: 0.0667 | Q66: 0 | R66: -0.01817019927 | S66: 0 | T66: -0.0425542939 | U66: 0 | V66: 0.7547251303
A67: 0.36 | B67: 0.7705132428 | C67: 0 | D67: 0.1605684996 | E67: 0 | F67: -0.1902113033 | G67: 0 | H67: -0.01791011908 | I67: 0 | J67: 0.1108807695 | K67: 0 | L67: -0.02260591074 | M67: 0 | N67: -0.06958120033 | O67: 0 | P67: 0.03920527633 | Q67: 0 | R67: 0.04025136983 | S67: 0 | T67: -0.04441164888 | U67: 0 | V67: 0.7766989757
A68: 0.37 | B68: 0.7289686274 | C68: 0 | D68: 0.2124534158 | E68: 0 | F68: -0.1618033989 | G68: 0 | H68: -0.076569649 | I68: 0 | J68: 0.09735767215 | K68: 0 | L68: 0.0387033376 | M68: 0 | N68: -0.07149981176 | O68: 0 | P68: -0.02061143352 | Q68: 0 | R68: 0.05695268987 | S68: 0 | T68: 0.009856257147 | U68: 0 | V68: 0.8138077068
A69: 0.38 | B69: 0.6845471059 | C69: 0 | D69: 0.2568120638 | E69: 0 | F69: -0.1175570505 | G69: 0 | H69: -0.1206544606 | I69: 0 | J69: 0.05352283319 | K69: 0 | L69: 0.08224877907 | M69: 0 | N69: -0.0283087781 | O69: 0 | P69: -0.06343546964 | Q69: 0 | R69: 0.01462296537 | S69: 0 | T69: 0.05166830939 | U69: 0 | V69: 0.813466298
A70: 0.39 | B70: 0.6374239897 | C70: 0 | D70: 0.2920730165 | E70: 0 | F70: -0.06180339887 | G70: 0 | H70: -0.1417731908 | I70: 0 | J70: -0.00697602672 | K70: 0 | L70: 0.08804420935 | M70: 0 | N70: 0.03274242752 | O70: 0 | P70: -0.05396143352 | Q70: 0 | R70: -0.04286335529 | S70: 0 | T70: 0.02818448942 | U70: 0 | V70: 0.7710907273
A71: 0.4 | B71: 0.5877852523 | C71: 0 | D71: 0.3169871369 | E71: 0 | F71: 9.678022272e-16 | G71: 0 | H71: -0.1359059762 | I71: 0 | J71: -0.06530294153 | K71: 0 | L71: 0.05342967943 | M71: 0 | N71: 0.0731362461 | O71: 0 | P71: 8.498031272e-16 | Q71: 0 | R71: -0.05592212316 | S71: 0 | T71: -0.03091750427 | U71: 0 | V71: 0.7432897696
A72: 0.41 | B72: 0.535826795 | C72: 0 | D72: 0.3306718299 | E72: 0 | F72: 0.06180339887 | G72: 0 | H72: -0.1041696169 | I72: 0 | J72: -0.1032981676 | K72: 0 | L72: -0.005707658225 | M72: 0 | N72: 0.0673879837 | O72: 0 | P72: 0.05396143352 | Q72: 0 | R72: -0.0110180213 | S72: 0 | T72: -0.05094747428 | U72: 0 | V72: 0.7745105028
A73: 0.42 | B73: 0.4817536741 | C73: 0 | D73: 0.3326423086 | E73: 0 | F73: 0.1175570505 | G73: 0 | H73: -0.05260499858 | I73: 0 | J73: -0.1091321136 | K73: 0 | L73: -0.06222533193 | M73: 0 | N73: 0.01912425232 | O73: 0 | P73: 0.06343546964 | Q73: 0 | R73: 0.04530617868 | S73: 0 | T73: -0.006592528085 | U73: 0 | V73: 0.8292639616
A74: 0.43 | B74: 0.4257792916 | C74: 0 | D74: 0.3228287676 | E74: 0 | F74: 0.1618033989 | G74: 0 | H74: 0.008972765241 | I74: 0 | J74: -0.08098841451 | K74: 0 | L74: -0.09018322635 | M74: 0 | N74: -0.04120508053 | O74: 0 | P74: 0.02061143352 | Q74: 0 | R74: 0.05467085737 | S74: 0 | T74: 0.04609373137 | U74: 0 | V74: 0.8283835242
A75: 0.44 | B75: 0.3681245527 | C75: 0 | D75: 0.3015788566 | E75: 0 | F75: 0.1902113033 | G75: 0 | H75: 0.06884260003 | I75: 0 | J75: -0.02762944646 | K75: 0 | L75: -0.07674940843 | M75: 0 | N75: -0.07553788958 | O75: 0 | P75: -0.03920527633 | Q75: 0 | R75: 0.007369594134 | S75: 0 | T75: 0.04052899657 | U75: 0 | V75: 0.7575338825
A76: 0.45 | B76: 0.3090169944 | C76: 0 | D76: 0.2696453642 | E76: 0 | F76: 0.2 | G76: 0 | H76: 0.1156085285 | I76: 0 | J76: 0.03433178808 | K76: 0 | L76: -0.02808964479 | M76: 0 | N76: -0.06221340687 | O76: 0 | P76: -0.0667 | Q76: 0 | R76: -0.04757019927 | S76: 0 | T76: -0.0162542939 | U76: 0 | V76: 0.7077751303
A77: 0.46 | B77: 0.2486898872 | C77: 0 | D77: 0.2281595504 | E77: 0 | F77: 0.1902113033 | G77: 0 | H77: 0.1403688481 | I77: 0 | J77: 0.08560402127 | K77: 0 | L77: 0.03346252184 | M77: 0 | N77: -0.009638125661 | O77: 0 | P77: -0.03920527633 | Q77: 0 | R77: -0.05320383069 | S77: 0 | T77: -0.05249620592 | U77: 0 | V77: 0.7719526935
A78: 0.47 | B78: 0.1873813146 | C78: 0 | D78: 0.1785910708 | E78: 0 | F78: 0.1618033989 | G78: 0 | H78: 0.1384105337 | I78: 0 | J78: 0.1102239433 | K78: 0 | L78: 0.07965627722 | M78: 0 | N78: 0.04901790481 | O78: 0 | P78: 0.02061143352 | Q78: 0 | R78: -0.003692082548 | S78: 0 | T78: -0.02239599074 | U78: 0 | V78: 0.8996078035
A79: 0.48 | B79: 0.1253332336 | C79: 0 | D79: 0.1226959134 | E79: 0 | F79: 0.1175570505 | G79: 0 | H79: 0.1101063424 | I79: 0 | J79: 0.1005262855 | K79: 0 | L79: 0.08928991109 | M79: 0 | N79: 0.07674825542 | O79: 0 | P79: 0.06343546964 | Q79: 0 | R79: 0.04964648202 | S79: 0 | T79: 0.03600717777 | U79: 0 | V79: 0.8913461213
A80: 0.49 | B80: 0.06279051953 | C80: 0 | D80: 0.06245419215 | E80: 0 | F80: 0.06180339887 | G80: 0 | H80: 0.06084386076 | I80: 0 | J80: 0.05953035692 | K80: 0 | L80: 0.05794184067 | M80: 0 | N80: 0.05605768745 | O80: 0 | P80: 0.05396143352 | Q80: 0 | R80: 0.05152683279 | S80: 0 | T80: 0.04890624316 | U80: 0 | V80: 0.5758163658
A81: 0.5 | B81: -1.209752784e-15 | C81: 0 | D81: -1.061616875e-15 | E81: 0 | F81: -1.298570626e-15 | G81: 0 | H81: -1.400496754e-15 | I81: 0 | J81: -1.456323365e-15 | K81: 0 | L81: -8.463224262e-16 | M81: 0 | N81: -1.789947682e-15 | O81: 0 | P81: -1.062253909e-15 | Q81: 0 | R81: -1.339831111e-15 | S81: 0 | T81: -1.18566784e-15 | U81: 0 | V81: -1.265078337e-14
A82: 0.51 | B82: -0.06279051953 | C82: 0 | D82: -0.06245419215 | E82: 0 | F82: -0.06180339887 | G82: 0 | H82: -0.06084386076 | I82: 0 | J82: -0.05953035692 | K82: 0 | L82: -0.05794184067 | M82: 0 | N82: -0.05605768745 | O82: 0 | P82: -0.05396143352 | Q82: 0 | R82: -0.05152683279 | S82: 0 | T82: -0.04890624316 | U82: 0 | V82: -0.5758163658
A83: 0.52 | B83: -0.1253332336 | C83: 0 | D83: -0.1226959134 | E83: 0 | F83: -0.1175570505 | G83: 0 | H83: -0.1101063424 | I83: 0 | J83: -0.1005262855 | K83: 0 | L83: -0.08928991109 | M83: 0 | N83: -0.07674825542 | O83: 0 | P83: -0.06343546964 | Q83: 0 | R83: -0.04964648202 | S83: 0 | T83: -0.03600717777 | U83: 0 | V83: -0.8913461213
A84: 0.53 | B84: -0.1873813146 | C84: 0 | D84: -0.1785910708 | E84: 0 | F84: -0.1618033989 | G84: 0 | H84: -0.1384105337 | I84: 0 | J84: -0.1102239433 | K84: 0 | L84: -0.07965627722 | M84: 0 | N84: -0.04901790481 | O84: 0 | P84: -0.02061143352 | Q84: 0 | R84: 0.003692082548 | S84: 0 | T84: 0.02239599074 | U84: 0 | V84: -0.8996078035
A85: 0.54 | B85: -0.2486898872 | C85: 0 | D85: -0.2281595504 | E85: 0 | F85: -0.1902113033 | G85: 0 | H85: -0.1403688481 | I85: 0 | J85: -0.08560402127 | K85: 0 | L85: -0.03346252184 | M85: 0 | N85: 0.009638125661 | O85: 0 | P85: 0.03920527633 | Q85: 0 | R85: 0.05320383069 | S85: 0 | T85: 0.05249620592 | U85: 0 | V85: -0.7719526935
A86: 0.55 | B86: -0.3090169944 | C86: 0 | D86: -0.2696453642 | E86: 0 | F86: -0.2 | G86: 0 | H86: -0.1156085285 | I86: 0 | J86: -0.03433178808 | K86: 0 | L86: 0.02808964479 | M86: 0 | N86: 0.06221340687 | O86: 0 | P86: 0.0667 | Q86: 0 | R86: 0.04757019927 | S86: 0 | T86: 0.0162542939 | U86: 0 | V86: -0.7077751303
A87: 0.56 | B87: -0.3681245527 | C87: 0 | D87: -0.3015788566 | E87: 0 | F87: -0.1902113033 | G87: 0 | H87: -0.06884260003 | I87: 0 | J87: 0.02762944646 | K87: 0 | L87: 0.07674940843 | M87: 0 | N87: 0.07553788958 | O87: 0 | P87: 0.03920527633 | Q87: 0 | R87: -0.007369594134 | S87: 0 | T87: -0.04052899657 | U87: 0 | V87: -0.7575338825
A88: 0.57 | B88: -0.4257792916 | C88: 0 | D88: -0.3228287676 | E88: 0 | F88: -0.1618033989 | G88: 0 | H88: -0.008972765241 | I88: 0 | J88: 0.08098841451 | K88: 0 | L88: 0.09018322635 | M88: 0 | N88: 0.04120508053 | O88: 0 | P88: -0.02061143352 | Q88: 0 | R88: -0.05467085737 | S88: 0 | T88: -0.04609373137 | U88: 0 | V88: -0.8283835242
A89: 0.58 | B89: -0.4817536741 | C89: 0 | D89: -0.3326423086 | E89: 0 | F89: -0.1175570505 | G89: 0 | H89: 0.05260499858 | I89: 0 | J89: 0.1091321136 | K89: 0 | L89: 0.06222533193 | M89: 0 | N89: -0.01912425232 | O89: 0 | P89: -0.06343546964 | Q89: 0 | R89: -0.04530617868 | S89: 0 | T89: 0.006592528085 | U89: 0 | V89: -0.8292639616
A90: 0.59 | B90: -0.535826795 | C90: 0 | D90: -0.3306718299 | E90: 0 | F90: -0.06180339887 | G90: 0 | H90: 0.1041696169 | I90: 0 | J90: 0.1032981676 | K90: 0 | L90: 0.005707658225 | M90: 0 | N90: -0.0673879837 | O90: 0 | P90: -0.05396143352 | Q90: 0 | R90: 0.0110180213 | S90: 0 | T90: 0.05094747428 | U90: 0 | V90: -0.7745105028
A91: 0.6 | B91: -0.5877852523 | C91: 0 | D91: -0.3169871369 | E91: 0 | F91: 1.984610393e-15 | G91: 0 | H91: 0.1359059762 | I91: 0 | J91: 0.06530294153 | K91: 0 | L91: -0.05342967943 | M91: 0 | N91: -0.0731362461 | O91: 0 | P91: 1.748636696e-15 | Q91: 0 | R91: 0.05592212316 | S91: 0 | T91: 0.03091750427 | U91: 0 | V91: -0.7432897696
A92: 0.61 | B92: -0.6374239897 | C92: 0 | D92: -0.2920730165 | E92: 0 | F92: 0.06180339887 | G92: 0 | H92: 0.1417731908 | I92: 0 | J92: 0.00697602672 | K92: 0 | L92: -0.08804420935 | M92: 0 | N92: -0.03274242752 | O92: 0 | P92: 0.05396143352 | Q92: 0 | R92: 0.04286335529 | S92: 0 | T92: -0.02818448942 | U92: 0 | V92: -0.7710907273
A93: 0.62 | B93: -0.6845471059 | C93: 0 | D93: -0.2568120638 | E93: 0 | F93: 0.1175570505 | G93: 0 | H93: 0.1206544606 | I93: 0 | J93: -0.05352283319 | K93: 0 | L93: -0.08224877907 | M93: 0 | N93: 0.0283087781 | O93: 0 | P93: 0.06343546964 | Q93: 0 | R93: -0.01462296537 | S93: 0 | T93: -0.05166830939 | U93: 0 | V93: -0.813466298
A94: 0.63 | B94: -0.7289686274 | C94: 0 | D94: -0.2124534158 | E94: 0 | F94: 0.1618033989 | G94: 0 | H94: 0.076569649 | I94: 0 | J94: -0.09735767215 | K94: 0 | L94: -0.0387033376 | M94: 0 | N94: 0.07149981176 | O94: 0 | P94: 0.02061143352 | Q94: 0 | R94: -0.05695268987 | S94: 0 | T94: -0.009856257147 | U94: 0 | V94: -0.8138077068
A95: 0.64 | B95: -0.7705132428 | C95: 0 | D95: -0.1605684996 | E95: 0 | F95: 0.1902113033 | G95: 0 | H95: 0.01791011908 | I95: 0 | J95: -0.1108807695 | K95: 0 | L95: 0.02260591074 | M95: 0 | N95: 0.06958120033 | O95: 0 | P95: -0.03920527633 | Q95: 0 | R95: -0.04025136983 | S95: 0 | T95: 0.04441164888 | U95: 0 | V95: -0.7766989757
A96: 0.65 | B96: -0.8090169944 | C96: 0 | D96: -0.1029953642 | E96: 0 | F96: 0.2 | G96: 0 | H96: -0.0441585285 | I96: 0 | J96: -0.08988178808 | K96: 0 | L96: 0.07353964479 | M96: 0 | N96: 0.02376340687 | O96: 0 | P96: -0.0667 | Q96: 0 | R96: 0.01817019927 | S96: 0 | T96: 0.0425542939 | U96: 0 | V96: -0.7547251303
A97: =A96+$C$25 -> 0.66 | B97: =$B$4*SIN(2*PI()*$D$4*A97+$F$4) -> -0.8443279255 | C97: =$B$5*SIN(2*PI()*$D$5*A97+$F$5) -> 0 | D97: =$B$6*SIN(2*PI()*$D$6*A97+$F$6) -> -0.04177356675 | E97: =$B$7*SIN(2*PI()*$D$7*A97+$F$7) -> 0 | F97: =$B$8*SIN(2*PI()*$D$8*A97+$F$8) -> 0.1902113033 | G97: =$B$9*SIN(2*PI()*$D$9*A97+$F$9) -> 0 | H97: =$B$10*SIN(2*PI()*$D$10*A97+$F$10) -> -0.09782178144 | I97: =$B$11*SIN(2*PI()*$D$11*A97+$F$11) -> 0 | J97: =$B$12*SIN(2*PI()*$D$12*A97+$F$12) -> -0.0408986378 | K97: =$B$13*SIN(2*PI()*$D$13*A97+$F$13) -> 0 | L97: =$B$14*SIN(2*PI()*$D$14*A97+$F$14) -> 0.09072062961 | M97: =$B$15*SIN(2*PI()*$D$15*A97+$F$15) -> 0 | N97: =$B$16*SIN(2*PI()*$D$16*A97+$F$16) -> -0.03704685754 | O97: =$B$17*SIN(2*PI()*$D$17*A97+$F$17) -> 0 | P97: =$B$18*SIN(2*PI()*$D$18*A97+$F$18) -> -0.03920527633 | Q97: =$B$19*SIN(2*PI()*$D$19*A97+$F$19) -> 0 | R97: =$B$20*SIN(2*PI()*$D$20*A97+$F$20) -> 0.05775849034 | S97: =$B$21*SIN(2*PI()*$D$21*A97+$F$21) -> 0 | T97: =$B$22*SIN(2*PI()*$D$22*A97+$F$22) -> -0.01308108806 | U97: =$B$23*SIN(2*PI()*$D$23*A97+$F$23) -> 0 | V97: =SUM(B97:U97) -> -0.7754647102
A98: 0.67 | B98: -0.87630668 | C98: 0 | D98: 0.02092808016 | E98: 0 | F98: 0.1618033989 | G98: 0 | H98: -0.1328650598 | I98: 0 | J98: 0.02081806405 | K98: 0 | L98: 0.06626324823 | M98: 0 | N98: -0.07448404509 | O98: 0 | P98: 0.02061143352 | Q98: 0 | R98: 0.0374805306 | S98: 0 | T98: -0.05218523329 | U98: 0 | V98: -0.8079362628
A99: 0.68 | B99: -0.9048270525 | C99: 0 | D99: 0.08288833939 | E99: 0 | F99: 0.1175570505 | G99: 0 | H99: -0.1426180195 | I99: 0 | J99: 0.07605318347 | K99: 0 | L99: 0.01139279093 | M99: 0 | N99: -0.06492881747 | O99: 0 | P99: 0.06343546964 | Q99: 0 | R99: -0.0216457237 | S99: 0 | T99: -0.02534024326 | U99: 0 | V99: -0.8080330225
A100: 0.69 | B100: -0.9297764859 | C100: 0 | D100: 0.1419122379 | E100: 0 | F100: 0.06180339887 | G100: 0 | H100: -0.1252242246 | I100: 0 | J100: 0.1076095892 | K100: 0 | L100: -0.04870665566 | M100: 0 | N100: -0.01440962309 | O100: 0 | P100: 0.05396143352 | Q100: 0 | R100: -0.05833634444 | S100: 0 | T100: 0.03352850186 | U100: 0 | V100: -0.7776381723
A101: 0.7 | B101: -0.9510565163 | C101: 0 | D101: 0.1959088246 | E101: 0 | F101: -2.670650159e-15 | G101: 0 | H101: -0.08399451255 | I101: 0 | J101: 0.105662379 | K101: 0 | L101: -0.08645103733 | M101: 0 | N101: 0.0452006859 | O101: 0 | P101: -1.961087477e-15 | Q101: 0 | R101: -0.03456177283 | S101: 0 | T101: 0.05002557276 | U101: 0 | V101: -0.7592663768
A102: 0.71 | B102: -0.9685831611 | C102: 0 | D102: 0.2429652435 | E102: 0 | F102: -0.06180339887 | G102: 0 | H102: -0.02677678985 | I102: 0 | J102: 0.07081780526 | K102: 0 | L102: -0.08451668257 | M102: 0 | N102: 0.07629362053 | O102: 0 | P102: -0.05396143352 | Q102: 0 | R102: 0.02503582234 | S102: 0 | T102: 0.003302781327 | U102: 0 | V102: -0.777226193
A103: 0.72 | B103: -0.9822872507 | C103: 0 | D103: 0.2814144976 | E103: 0 | F103: -0.1175570505 | G103: 0 | H103: 0.03553778488 | I103: 0 | J103: 0.01392452225 | K103: 0 | L103: -0.04379140898 | M103: 0 | N103: 0.05925246837 | O103: 0 | P103: -0.06343546964 | Q103: 0 | R103: 0.05868397163 | S103: 0 | T103: -0.04759390296 | U103: 0 | V103: -0.8058518381
A104: 0.73 | B104: -0.9921147013 | C104: 0 | D104: 0.3098945027 | E104: 0 | F104: -0.1618033989 | G104: 0 | H104: 0.09108788814 | I104: 0 | J104: -0.04730407929 | K104: 0 | L104: 0.0170329615 | M104: 0 | N104: 0.004828590952 | O104: 0 | P104: -0.02061143352 | Q104: 0 | R104: 0.03150661554 | S104: 0 | T104: -0.0383437498 | U104: 0 | V104: -0.8058268039
A105: 0.74 | B105: -0.9980267284 | C105: 0 | D105: 0.3273963407 | E105: 0 | F105: -0.1902113033 | G105: 0 | H105: 0.1292997858 | I105: 0 | J105: -0.09380483252 | K105: 0 | L105: 0.07003965377 | M105: 0 | N105: -0.05264167245 | O105: 0 | P105: 0.03920527633 | Q105: 0 | R105: -0.02832711604 | S105: 0 | T105: 0.01936335147 | U105: 0 | V105: -0.7777072447
A106: 0.75 | B106: -1 | C106: 0 | D106: 0.3333 | E106: 0 | F106: -0.2 | G106: 0 | H106: 0.1429 | I106: 0 | J106: -0.1111 | K106: 0 | L106: 0.0909 | M106: 0 | N106: -0.0769 | O106: 0 | P106: 0.0667 | Q106: 0 | R106: -0.0588 | S106: 0 | T106: 0.0526 | U106: 0 | V106: -0.7604
A107: 0.76 | B107: -0.9980267284 | C107: 0 | D107: 0.3273963407 | E107: 0 | F107: -0.1902113033 | G107: 0 | H107: 0.1292997858 | I107: 0 | J107: -0.09380483252 | K107: 0 | L107: 0.07003965377 | M107: 0 | N107: -0.05264167245 | O107: 0 | P107: 0.03920527633 | Q107: 0 | R107: -0.02832711604 | S107: 0 | T107: 0.01936335147 | U107: 0 | V107: -0.7777072447
A108: 0.77 | B108: -0.9921147013 | C108: 0 | D108: 0.3098945027 | E108: 0 | F108: -0.1618033989 | G108: 0 | H108: 0.09108788814 | I108: 0 | J108: -0.04730407929 | K108: 0 | L108: 0.0170329615 | M108: 0 | N108: 0.004828590952 | O108: 0 | P108: -0.02061143352 | Q108: 0 | R108: 0.03150661554 | S108: 0 | T108: -0.0383437498 | U108: 0 | V108: -0.8058268039
A109: 0.78 | B109: -0.9822872507 | C109: 0 | D109: 0.2814144976 | E109: 0 | F109: -0.1175570505 | G109: 0 | H109: 0.03553778488 | I109: 0 | J109: 0.01392452225 | K109: 0 | L109: -0.04379140898 | M109: 0 | N109: 0.05925246837 | O109: 0 | P109: -0.06343546964 | Q109: 0 | R109: 0.05868397163 | S109: 0 | T109: -0.04759390296 | U109: 0 | V109: -0.8058518381
A110: 0.79 | B110: -0.9685831611 | C110: 0 | D110: 0.2429652435 | E110: 0 | F110: -0.06180339887 | G110: 0 | H110: -0.02677678985 | I110: 0 | J110: 0.07081780526 | K110: 0 | L110: -0.08451668257 | M110: 0 | N110: 0.07629362053 | O110: 0 | P110: -0.05396143352 | Q110: 0 | R110: 0.02503582234 | S110: 0 | T110: 0.003302781327 | U110: 0 | V110: -0.777226193
A111: 0.8 | B111: -0.9510565163 | C111: 0 | D111: 0.1959088246 | E111: 0 | F111: 2.64614719e-15 | G111: 0 | H111: -0.08399451255 | I111: 0 | J111: 0.105662379 | K111: 0 | L111: -0.08645103733 | M111: 0 | N111: 0.0452006859 | O111: 0 | P111: 2.647470264e-15 | Q111: 0 | R111: -0.03456177283 | S111: 0 | T111: 0.05002557276 | U111: 0 | V111: -0.7592663768
A112: 0.81 | B112: -0.9297764859 | C112: 0 | D112: 0.1419122379 | E112: 0 | F112: 0.06180339887 | G112: 0 | H112: -0.1252242246 | I112: 0 | J112: 0.1076095892 | K112: 0 | L112: -0.04870665566 | M112: 0 | N112: -0.01440962309 | O112: 0 | P112: 0.05396143352 | Q112: 0 | R112: -0.05833634444 | S112: 0 | T112: 0.03352850186 | U112: 0 | V112: -0.7776381723
A113: 0.82 | B113: -0.9048270525 | C113: 0 | D113: 0.08288833939 | E113: 0 | F113: 0.1175570505 | G113: 0 | H113: -0.1426180195 | I113: 0 | J113: 0.07605318347 | K113: 0 | L113: 0.01139279093 | M113: 0 | N113: -0.06492881747 | O113: 0 | P113: 0.06343546964 | Q113: 0 | R113: -0.0216457237 | S113: 0 | T113: -0.02534024326 | U113: 0 | V113: -0.8080330225
A114: 0.83 | B114: -0.87630668 | C114: 0 | D114: 0.02092808016 | E114: 0 | F114: 0.1618033989 | G114: 0 | H114: -0.1328650598 | I114: 0 | J114: 0.02081806405 | K114: 0 | L114: 0.06626324823 | M114: 0 | N114: -0.07448404509 | O114: 0 | P114: 0.02061143352 | Q114: 0 | R114: 0.0374805306 | S114: 0 | T114: -0.05218523329 | U114: 0 | V114: -0.8079362628
A115: 0.84 | B115: -0.8443279255 | C115: 0 | D115: -0.04177356675 | E115: 0 | F115: 0.1902113033 | G115: 0 | H115: -0.09782178144 | I115: 0 | J115: -0.0408986378 | K115: 0 | L115: 0.09072062961 | M115: 0 | N115: -0.03704685754 | O115: 0 | P115: -0.03920527633 | Q115: 0 | R115: 0.05775849034 | S115: 0 | T115: -0.01308108806 | U115: 0 | V115: -0.7754647102
A116: 0.85 | B116: -0.8090169944 | C116: 0 | D116: -0.1029953642 | E116: 0 | F116: 0.2 | G116: 0 | H116: -0.0441585285 | I116: 0 | J116: -0.08988178808 | K116: 0 | L116: 0.07353964479 | M116: 0 | N116: 0.02376340687 | O116: 0 | P116: -0.0667 | Q116: 0 | R116: 0.01817019927 | S116: 0 | T116: 0.0425542939 | U116: 0 | V116: -0.7547251303
A117: 0.86 | B117: -0.7705132428 | C117: 0 | D117: -0.1605684996 | E117: 0 | F117: 0.1902113033 | G117: 0 | H117: 0.01791011908 | I117: 0 | J117: -0.1108807695 | K117: 0 | L117: 0.02260591074 | M117: 0 | N117: 0.06958120033 | O117: 0 | P117: -0.03920527633 | Q117: 0 | R117: -0.04025136983 | S117: 0 | T117: 0.04441164888 | U117: 0 | V117: -0.7766989757
A118: 0.87 | B118: -0.7289686274 | C118: 0 | D118: -0.2124534158 | E118: 0 | F118: 0.1618033989 | G118: 0 | H118: 0.076569649 | I118: 0 | J118: -0.09735767215 | K118: 0 | L118: -0.0387033376 | M118: 0 | N118: 0.07149981176 | O118: 0 | P118: 0.02061143352 | Q118: 0 | R118: -0.05695268987 | S118: 0 | T118: -0.009856257147 | U118: 0 | V118: -0.8138077068
A119: 0.88 | B119: -0.6845471059 | C119: 0 | D119: -0.2568120638 | E119: 0 | F119: 0.1175570505 | G119: 0 | H119: 0.1206544606 | I119: 0 | J119: -0.05352283319 | K119: 0 | L119: -0.08224877907 | M119: 0 | N119: 0.0283087781 | O119: 0 | P119: 0.06343546964 | Q119: 0 | R119: -0.01462296537 | S119: 0 | T119: -0.05166830939 | U119: 0 | V119: -0.813466298
A120: 0.89 | B120: -0.6374239897 | C120: 0 | D120: -0.2920730165 | E120: 0 | F120: 0.06180339887 | G120: 0 | H120: 0.1417731908 | I120: 0 | J120: 0.00697602672 | K120: 0 | L120: -0.08804420935 | M120: 0 | N120: -0.03274242752 | O120: 0 | P120: 0.05396143352 | Q120: 0 | R120: 0.04286335529 | S120: 0 | T120: -0.02818448942 | U120: 0 | V120: -0.7710907273
A121: 0.9 | B121: -0.5877852523 | C121: 0 | D121: -0.3169871369 | E121: 0 | F121: -3.332186957e-15 | G121: 0 | H121: 0.1359059762 | I121: 0 | J121: 0.06530294153 | K121: 0 | L121: -0.05342967943 | M121: 0 | N121: -0.0731362461 | O121: 0 | P121: -3.33385305e-15 | Q121: 0 | R121: 0.05592212316 | S121: 0 | T121: 0.03091750427 | U121: 0 | V121: -0.7432897696
A122: 0.91 | B122: -0.535826795 | C122: 0 | D122: -0.3306718299 | E122: 0 | F122: -0.06180339887 | G122: 0 | H122: 0.1041696169 | I122: 0 | J122: 0.1032981676 | K122: 0 | L122: 0.005707658225 | M122: 0 | N122: -0.0673879837 | O122: 0 | P122: -0.05396143352 | Q122: 0 | R122: 0.0110180213 | S122: 0 | T122: 0.05094747428 | U122: 0 | V122: -0.7745105028
A123: 0.92 | B123: -0.4817536741 | C123: 0 | D123: -0.3326423086 | E123: 0 | F123: -0.1175570505 | G123: 0 | H123: 0.05260499858 | I123: 0 | J123: 0.1091321136 | K123: 0 | L123: 0.06222533193 | M123: 0 | N123: -0.01912425232 | O123: 0 | P123: -0.06343546964 | Q123: 0 | R123: -0.04530617868 | S123: 0 | T123: 0.006592528085 | U123: 0 | V123: -0.8292639616
A124: 0.93 | B124: -0.4257792916 | C124: 0 | D124: -0.3228287676 | E124: 0 | F124: -0.1618033989 | G124: 0 | H124: -0.008972765241 | I124: 0 | J124: 0.08098841451 | K124: 0 | L124: 0.09018322635 | M124: 0 | N124: 0.04120508053 | O124: 0 | P124: -0.02061143352 | Q124: 0 | R124: -0.05467085737 | S124: 0 | T124: -0.04609373137 | U124: 0 | V124: -0.8283835242
A125: 0.94 | B125: -0.3681245527 | C125: 0 | D125: -0.3015788566 | E125: 0 | F125: -0.1902113033 | G125: 0 | H125: -0.06884260003 | I125: 0 | J125: 0.02762944646 | K125: 0 | L125: 0.07674940843 | M125: 0 | N125: 0.07553788958 | O125: 0 | P125: 0.03920527633 | Q125: 0 | R125: -0.007369594134 | S125: 0 | T125: -0.04052899657 | U125: 0 | V125: -0.7575338825
A126: 0.95 | B126: -0.3090169944 | C126: 0 | D126: -0.2696453642 | E126: 0 | F126: -0.2 | G126: 0 | H126: -0.1156085285 | I126: 0 | J126: -0.03433178808 | K126: 0 | L126: 0.02808964479 | M126: 0 | N126: 0.06221340687 | O126: 0 | P126: 0.0667 | Q126: 0 | R126: 0.04757019927 | S126: 0 | T126: 0.0162542939 | U126: 0 | V126: -0.7077751303
A127: 0.96 | B127: -0.2486898872 | C127: 0 | D127: -0.2281595504 | E127: 0 | F127: -0.1902113033 | G127: 0 | H127: -0.1403688481 | I127: 0 | J127: -0.08560402127 | K127: 0 | L127: -0.03346252184 | M127: 0 | N127: 0.009638125661 | O127: 0 | P127: 0.03920527633 | Q127: 0 | R127: 0.05320383069 | S127: 0 | T127: 0.05249620592 | U127: 0 | V127: -0.7719526935
A128: 0.97 | B128: -0.1873813146 | C128: 0 | D128: -0.1785910708 | E128: 0 | F128: -0.1618033989 | G128: 0 | H128: -0.1384105337 | I128: 0 | J128: -0.1102239433 | K128: 0 | L128: -0.07965627722 | M128: 0 | N128: -0.04901790481 | O128: 0 | P128: -0.02061143352 | Q128: 0 | R128: 0.003692082548 | S128: 0 | T128: 0.02239599074 | U128: 0 | V128: -0.8996078035
A129: 0.98 | B129: -0.1253332336 | C129: 0 | D129: -0.1226959134 | E129: 0 | F129: -0.1175570505 | G129: 0 | H129: -0.1101063424 | I129: 0 | J129: -0.1005262855 | K129: 0 | L129: -0.08928991109 | M129: 0 | N129: -0.07674825542 | O129: 0 | P129: -0.06343546964 | Q129: 0 | R129: -0.04964648202 | S129: 0 | T129: -0.03600717777 | U129: 0 | V129: -0.8913461213
A130: 0.99 | B130: -0.06279051953 | C130: 0 | D130: -0.06245419215 | E130: 0 | F130: -0.06180339887 | G130: 0 | H130: -0.06084386076 | I130: 0 | J130: -0.05953035692 | K130: 0 | L130: -0.05794184067 | M130: 0 | N130: -0.05605768745 | O130: 0 | P130: -0.05396143352 | Q130: 0 | R130: -0.05152683279 | S130: 0 | T130: -0.04890624316 | U130: 0 | V130: -0.5758163658
A131: 1 | B131: 4.195862408e-15 | C131: 0 | D131: 4.491472689e-15 | E131: 0 | F131: 4.018226724e-15 | G131: 0 | H131: 3.816359078e-15 | I131: 0 | J131: 3.702059709e-15 | K131: 0 | L131: 2.984411546e-15 | M131: 0 | N131: 4.672710092e-15 | O131: 0 | P131: 3.072371827e-15 | Q131: 0 | R131: 4.350858736e-15 | S131: 0 | T131: 3.866317596e-15 | U131: 0 | V131: 3.91706504e-14
